Workbook

Sheet גיליון1
A1: V2.01 | B1: הראל חברה לביטוח בע"מ | J1: 'נספחים ב וג'!$ | CI1: 68.42857143 | CJ1: 52.875 | CK1: לא קיים מידע נוסף בשורה זו. המשך בשורה הבאה.
A2: דו"ח חודשי , שיעורי ההשקעות ורכוש קבוע מסך כל ההתחייבויות לתקופה שנסתיימה ביום - | L2: 31.7.22 | M2: 50 | AJ2: 51 | AK2: 52 | AL2: 53 | AM2: 54 | AN2: 55 | AO2: 56 | AP2: 57 | AQ2: 58 | AR2: 59 | AS2: 60 | AT2: 61 | AU2: 62 | AV2: 63 | AW2: 64 | AX2: 65 | AY2: 66 | AZ2: 67 | BA2: 68 | BB2: 69 | BC2: 70 | BD2: 71 | BE2: 72 | BF2: 73 | BG2: 74 | BH2: 75 | BI2: 76 | BJ2: 77 | BK2: 78 | BL2: 79 | BM2: 80 | BN2: 81 | BO2: 82 | BP2: 83 | BQ2: 84 | BR2: 85 | BS2: 86 | BT2: 87 | BU2: 88 | BV2: 89 | BW2: 90 | BX2: 91 | BY2: 92 | BZ2: 93 | CA2: 94 | CB2: 95 | CC2: 96 | CD2: 97 | CE2: 98 | CF2: 99 | CG2: 78.42857143 | CJ2: 62.875 | CK2: 1 | CQ2: 15
A3: הסכומים באלפי ש"ח | O3: 1 | P3: 2 | Q3: 3 | R3: 4 | S3: 5 | T3: 6 | U3: 7 | V3: 8 | W3: 9 | X3: 10 | Y3: 11 | Z3: 12 | AA3: 13 | AB3: 14 | AC3: 15 | AD3: 16 | AE3: 17 | AF3: 18 | AG3: 19 | AH3: 20 | AI3: 21 | AJ3: 22 | AK3: 23 | AL3: 24 | AM3: 25 | AN3: 26 | AO3: 27 | AP3: 28 | AQ3: 29 | AR3: 30 | AS3: 31 | AT3: 32 | AU3: 33 | AV3: 34 | AW3: 35 | AX3: 36 | AY3: 37 | AZ3: 38 | BA3: 39 | BB3: 40 | BC3: 41 | BD3: 42 | BE3: 43 | BF3: 44 | BG3: 45 | BH3: 46 | BI3: 47 | BJ3: 48 | BK3: 49 | BL3: 50 | BM3: 51 | BN3: 52 | BO3: 53 | BP3: 54 | BQ3: 55 | BR3: 56 | BS3: 57 | BT3: 58 | BU3: 59 | BV3: 60 | BW3: 61 | BX3: 62 | BY3: 63 | BZ3: 64 | CA3: 65 | CB3: 66 | CC3: 67 | CD3: 68 | CE3: 69 | CF3: 70 | CI3: 146.8571429 | CJ3: 115.75 | CK3: 2 | CQ3: נספחים ב וג'!$C$
A6: גיליון זה הוא הגיליון היחיד בקובץ זה. גבולות הגיליון הם טור CK ושורה 497. גיליון זה מכיל טבלה המתחילה בתא A7 ומסתיימת בתא CG497. התאים A7 עד CG10 מכילים את כותרות הטבלה. קיימים תאים ריקים בטבלה.
J7: סה"כ משתתף ברווחים | K7: ביטוח חיים
K8: 10 | L8: 11 | M8: 12 | N8: 13
I9: חזרה | K9: קרן ח' | L9: קרן ט' | M9: קרן י' | N9: קרן י' פוליסות שהונפקו לאחר 1.1.04 | O9: הראל-מסלול כללי | P9: הראל-מסלול אג"ח ללא מניות | Q9: הראל-מסלול אג"ח עד 20% במניות | R9: הראל-מסלול אג"ח עד 10% במניות | S9: הראל-מסלול מניות | T9: הראל-מסלול שקלי טווח קצר | U9: הראל-מסלול חו"ל | V9: הראל - מסלול אג"ח מדינת ישראל | W9: הראל - מסלול אג"ח קונצרני | X9: הראל-מסלול משתתף ברווחים שקלי טווח קצר | Y9: הראל-מסלול משתתף ברווחים כללי ללא מניות | Z9: הראל-מסלול משתתף ברווחים לפחות 75% מניות | AA9: הראל- אג"ח חו"ל | AB9: הראל-מסלול פאסיבי - כללי | AC9: הראל-מסלול לבני 50 ומטה | AD9: הראל-מסלול לבני 50 עד 60 | AE9: הראל-מסלול לבני 60 ומעלה | AF9: הראל-מסלול בסיסי למקבלי קצבה | AG9: הראל-מסלול אג"ח עד 20% במניות למקבלי קצבה | AH9: הראל חברה לביטוח בע"מ מדרגות עד 50 | AI9: הראל מסלול לגילאי 50 עד 60 | AJ9: הראל מסלול לגילאי 60 ומעלה | AK9: הראל מסלול בסיסי למקבלי קצבה | AL9: הראל מסלול אג"ח עד 20% במניות למקבלי קצבה | AM9: הראל מסלול הוני ללא אג"ח | AN9: הראל מחקה מדד ממשלתי שקלי ריבית קבועה | AO9: הראל מחקה מדד S&P 500 | AP9: הראל מחקה מדד ממשלתי צמוד 5-10 | AQ9: הראל מחקה מדד תל בונד 60 | AR9: הראל מחקה מדד ת"א 35 | CG9: אחר
A10: שורה | K10: 0010 | L10: 0011 | M10: 0012 | N10: 0013 | O10: 88 | P10: 89 | Q10: 90 | R10: 91 | S10: 92 | T10: 93 | U10: 163 | V10: 177 | W10: 178 | X10: 195 | Y10: 196 | Z10: 197 | AA10: 8592 | AB10: 9561 | AC10: 9562 | AD10: 9563 | AE10: 9564 | AF10: 9565 | AG10: 9566 | AH10: 11400 | AI10: 11401 | AJ10: 11402 | AK10: 11403 | AL10: 11404 | AM10: 12981 | AN10: 13433 | AO10: 13434 | AP10: 13435 | AQ10: 13436 | AR10: 13437
A11: 10 | B11: 1. | C11: השקעות | J11: 79469860.14 | K11: 3855.019985 | L11: 897213.5151 | M11: 24044553.42 | N11: 829874.7345 | O11: 23816611.27 | P11: 1259278.828 | Q11: 6517876.41 | R11: 1700896.92 | S11: 2672419.341 | T11: 767337.7197 | U11: 349035.83 | V11: 271187.72 | W11: 127274.68 | X11: 55627.51935 | Y11: 74584.88633 | Z11: 108663.9627 | AA11: 20869.99 | AB11: 233559.22 | AC11: 2474263.799 | AD11: 984719.1248 | AE11: 1489679.261 | AF11: 2080525.351 | AG11: 930221.35 | AH11: 46958.98793 | AI11: 128907.552 | AJ11: 249752.6561 | AK11: 1142055.418 | AL11: 407126.7106 | AM11: 441904.02 | AN11: 20112.77 | AO11: 262847.33 | AP11: 54423.39 | AQ11: 62333.98 | AR11: 87357.13 | AS11: 0 | AT11: 0 | AU11: 0 | AV11: 0 | AW11: 0 | AX11: 0 | AY11: 0 | AZ11: 0 | BA11: 0 | BB11: 0 | BC11: 0 | BD11: 0 | BE11: 0 | BF11: 0 | BG11: 0 | BH11: 0 | BI11: 0 | BJ11: 0 | BK11: 0 | BL11: 0 | BM11: 0 | BN11: 0 | BO11: 0 | BP11: 0 | BQ11: 0 | BR11: 0 | BS11: 0 | BT11: 0 | BU11: 0 | BV11: 0 | BW11: 0 | BX11: 0 | BY11: 0 | BZ11: 0 | CA11: 0 | CB11: 0 | CC11: 0 | CD11: 0 | CE11: 0 | CF11: 0 | CG11: 4855950.32
A12: =A11+1 -> 11 | C12: א. | D12: מזומנים ושווי מזומנים | J12: 4724142.76 | K12: 134.1130089 | L12: 42470.51327 | M12: 1394042.502 | N12: 48114.04184 | O12: 1455354.66 | P12: 50978.99324 | Q12: 244874.53 | R12: 95789.67 | S12: 235533.5182 | T12: 53689.44749 | U12: 20520.79 | V12: 15760.66 | W12: 7634.11 | X12: 3892.17251 | Y12: 3019.396761 | Z12: 9577.09183 | AA12: 1107.53 | AB12: 11500.08 | AC12: 154649.4423 | AD12: 54266.72485 | AE12: 74576.21128 | AF12: 118604.9206 | AG12: 54861.52088 | AH12: 2935.08772 | AI12: 7103.945154 | AJ12: 12503.09872 | AK12: 65105.37936 | AL12: 24011.04912 | AM12: 106752.91 | AN12: 282.9 | AO12: 214 | AP12: 619.88 | AQ12: 994.67 | AR12: 944.97 | AS12: 0 | AT12: 0 | AU12: 0 | AV12: 0 | AW12: 0 | AX12: 0 | AY12: 0 | AZ12: 0 | BA12: 0 | BB12: 0 | BC12: 0 | BD12: 0 | BE12: 0 | BF12: 0 | BG12: 0 | BH12: 0 | BI12: 0 | BJ12: 0 | BK12: 0 | BL12: 0 | BM12: 0 | BN12: 0 | BO12: 0 | BP12: 0 | BQ12: 0 | BR12: 0 | BS12: 0 | BT12: 0 | BU12: 0 | BV12: 0 | BW12: 0 | BX12: 0 | BY12: 0 | BZ12: 0 | CA12: 0 | CB12: 0 | CC12: 0 | CD12: 0 | CE12: 0 | CF12: 0 | CG12: 351722.23
A13: 12 | D13: (1 | E13: בישראל | J13: 4615328.754 | K13: 130.7461171 | L13: 41404.29701 | M13: 1359045.261 | N13: 46906.1456 | O13: 1419344.301 | P13: 50978.99324 | Q13: 241356.897 | R13: 95648.1263 | S13: 226045.3726 | T13: 53689.44749 | U13: 20520.79 | V13: 15760.66 | W13: 7620.053312 | X13: 3892.17251 | Y13: 3019.396761 | Z13: 9577.09183 | AA13: 397.2162764 | AB13: 11500.08 | AC13: 149945.4036 | AD13: 52568.21996 | AE13: 73084.31835 | AF13: 113802.6601 | AG13: 54007.07776 | AH13: 2935.08772 | AI13: 7103.945154 | AJ13: 12503.09872 | AK13: 65105.37936 | AL13: 24011.04912 | AM13: 105874.7024 | AN13: 282.9 | AO13: 214 | AP13: 619.88 | AQ13: 994.67 | AR13: 944.97 | AS13: 0 | AT13: 0 | AU13: 0 | AV13: 0 | AW13: 0 | AX13: 0 | AY13: 0 | AZ13: 0 | BA13: 0 | BB13: 0 | BC13: 0 | BD13: 0 | BE13: 0 | BF13: 0 | BG13: 0 | BH13: 0 | BI13: 0 | BJ13: 0 | BK13: 0 | BL13: 0 | BM13: 0 | BN13: 0 | BO13: 0 | BP13: 0 | BQ13: 0 | BR13: 0 | BS13: 0 | BT13: 0 | BU13: 0 | BV13: 0 | BW13: 0 | BX13: 0 | BY13: 0 | BZ13: 0 | CA13: 0 | CB13: 0 | CC13: 0 | CD13: 0 | CE13: 0 | CF13: 0 | CG13: 344494.3433
A14: 13 | E14: א) | F14: יתרות מזומנים ועו"ש בשקלים חדשים | J14: 2750695.75 | K14: 77.94686539 | L14: 24683.98411 | M14: 810221.4999 | N14: 27964.0191 | O14: 810961.17 | P14: 36778.70171 | Q14: 155590.08 | R14: 77481.43 | S14: 100128.4982 | T14: 51522.49867 | U14: 6542.92 | V14: 13372.77 | W14: 5316.03 | X14: 3735.081331 | Y14: 2178.338288 | Z14: 4071.351836 | AA14: 259.56 | AB14: 8067.58 | AC14: 80883.38633 | AD14: 29776.43786 | AE14: 50211.96657 | AF14: 71407.89623 | AG14: 40537.52419 | AH14: 1535.083673 | AI14: 3897.972138 | AJ14: 8418.303425 | AK14: 39197.68377 | AL14: 17741.91581 | AM14: 89644.23 | AN14: 282.9 | AO14: 214 | AP14: 619.88 | AQ14: 994.67 | AR14: 944.97 | CG14: 175433.47
A15: 14 | E15: ב) | F15: יתרות מזומנים ועו"ש נקובים במט"ח | J15: 1679072.414 | K15: 46.34012606 | L15: 14674.85598 | M15: 481684.1469 | N15: 16624.86701 | O15: 579165.9809 | P15: 9404.677379 | Q15: 73504.09699 | R15: 15020.1263 | S15: 120537.8427 | T15: 2.498848057 | U15: 13535.27 | V15: 0 | W15: 2134.483312 | X15: 0.1811519427 | Y15: 557.0226208 | Z15: 5287.021735 | AA15: 118.7462764 | AB15: 3432.5 | AC15: 65402.20672 | AD15: 20665.37559 | AE15: 20773.21349 | AF15: 37733.95512 | AG15: 11455.99895 | AH15: 1330.544598 | AI15: 2927.609522 | AJ15: 3732.863586 | AK15: 23349.25433 | AL15: 5387.867935 | AM15: 15819.40241 | CG15: 134763.4633
A16: 15 | E16: ג) | F16: פח"ק/פר"י | J16: 185560.59 | K16: 6.459125673 | L16: 2045.456923 | M16: 67139.61446 | N16: 2317.259492 | O16: 29217.15 | P16: 4795.614147 | Q16: 12262.72 | R16: 3146.57 | S16: 5379.031741 | T16: 2164.449972 | U16: 442.6 | V16: 2387.89 | W16: 169.54 | X16: 156.9100275 | Y16: 284.0358529 | Z16: 218.7182586 | AA16: 18.91 | AC16: 3659.810551 | AD16: 2126.406505 | AE16: 2099.138293 | AF16: 4660.808748 | AG16: 2013.554622 | AH16: 69.45944872 | AI16: 278.363495 | AJ16: 351.9317066 | AK16: 2558.441252 | AL16: 881.2653781 | AM16: 411.07 | CG16: 34297.41
A17: 16 | E17: ד) | F17: פק"מ לתקופה של עד שלושה חודשים | J17: 0 | K17: 0 | L17: 0 | M17: 0 | N17: 0 | P17: 0 | S17: 0 | T17: 0 | X17: 0 | Y17: 0 | Z17: 0 | AC17: 0 | AD17: 0 | AE17: 0 | AF17: 0 | AG17: 0 | AH17: 0 | AI17: 0 | AJ17: 0 | AK17: 0 | AL17: 0 | CG17: 0
A18: 17 | E18: ה) | F18: פיקדון צמוד מדד עד שלושה חודשים | J18: 0 | K18: 0 | L18: 0 | M18: 0 | N18: 0 | P18: 0 | S18: 0 | T18: 0 | X18: 0 | Y18: 0 | Z18: 0 | AC18: 0 | AD18: 0 | AE18: 0 | AF18: 0 | AG18: 0 | AH18: 0 | AI18: 0 | AJ18: 0 | AK18: 0 | AL18: 0 | CG18: 0
A19: 18 | E19: ו) | F19: פיקדון צמוד מט"ח עד שלושה חודשים (פצ"מ) | J19: 0 | K19: 0 | L19: 0 | M19: 0 | N19: 0 | P19: 0 | S19: 0 | T19: 0 | X19: 0 | Y19: 0 | Z19: 0 | AC19: 0 | AD19: 0 | AE19: 0 | AF19: 0 | AG19: 0 | AH19: 0 | AI19: 0 | AJ19: 0 | AK19: 0 | AL19: 0 | CG19: 0
A20: 19 | E20: ז) | F20: פיקדונות במט"ח עד שלושה חודשים | J20: 0 | K20: 0 | L20: 0 | M20: 0 | N20: 0 | P20: 0 | S20: 0 | T20: 0 | X20: 0 | Y20: 0 | Z20: 0 | AC20: 0 | AD20: 0 | AE20: 0 | AF20: 0 | AG20: 0 | AH20: 0 | AI20: 0 | AJ20: 0 | AK20: 0 | AL20: 0 | CG20: 0
A21: 20 | D21: (2 | E21: בחו"ל | J21: 108814.0061 | K21: 3.366891795 | L21: 1066.216258 | M21: 34997.24057 | N21: 1207.896235 | O21: 36010.35907 | P21: 0 | Q21: 3517.633013 | R21: 141.5437023 | S21: 9488.145556 | T21: 0 | U21: 0 | V21: 0 | W21: 14.05668754 | X21: 0 | Y21: 0 | Z21: 0 | AA21: 710.3137236 | AB21: 0 | AC21: 4704.038684 | AD21: 1698.504884 | AE21: 1491.892928 | AF21: 4802.260548 | AG21: 854.4431199 | AH21: 0 | AI21: 0 | AJ21: 0 | AK21: 0 | AL21: 0 | AM21: 878.2075862 | AN21: 0 | AO21: 0 | AP21: 0 | AQ21: 0 | AR21: 0 | AS21: 0 | AT21: 0 | AU21: 0 | AV21: 0 | AW21: 0 | AX21: 0 | AY21: 0 | AZ21: 0 | BA21: 0 | BB21: 0 | BC21: 0 | BD21: 0 | BE21: 0 | BF21: 0 | BG21: 0 | BH21: 0 | BI21: 0 | BJ21: 0 | BK21: 0 | BL21: 0 | BM21: 0 | BN21: 0 | BO21: 0 | BP21: 0 | BQ21: 0 | BR21: 0 | BS21: 0 | BT21: 0 | BU21: 0 | BV21: 0 | BW21: 0 | BX21: 0 | BY21: 0 | BZ21: 0 | CA21: 0 | CB21: 0 | CC21: 0 | CD21: 0 | CE21: 0 | CF21: 0 | CG21: 7227.886671
A22: 21 | E22: א) | F22: יתרות מזומנים ועו"ש נקובים במט"ח | J22: 108814.0061 | K22: 3.366891795 | L22: 1066.216258 | M22: 34997.24057 | N22: 1207.896235 | O22: 36010.35907 | Q22: 3517.633013 | R22: 141.5437023 | S22: 9488.145556 | W22: 14.05668754 | AA22: 710.3137236 | AC22: 4704.038684 | AD22: 1698.504884 | AE22: 1491.892928 | AF22: 4802.260548 | AG22: 854.4431199 | AM22: 878.2075862 | CG22: 7227.886671
A23: 22 | E23: ב) | F23: פיקדונות במט"ח עד שלושה חודשים | J23: 0 | K23: 0 | L23: 0 | M23: 0 | N23: 0 | P23: 0 | S23: 0 | T23: 0 | X23: 0 | Y23: 0 | Z23: 0 | AC23: 0 | AD23: 0 | AE23: 0 | AF23: 0 | AG23: 0 | AH23: 0 | AI23: 0 | AJ23: 0 | AK23: 0 | AL23: 0 | CG23: 0
A24: 23 | AC24: 0 | AD24: 0 | AE24: 0 | AF24: 0 | AG24: 0 | AH24: 0 | AI24: 0 | AJ24: 0 | AK24: 0 | AL24: 0 | CG24: 0
A25: 24 | C25: ב. | D25: ניירות ערך (למעט בחברות מוחזקות) | J25: 58240702.92 | K25: 3211.734335 | L25: 697653.8202 | M25: 17454238.1 | N25: 602416.3118 | O25: 16618592.56 | P25: 815843.296 | Q25: 4591466.18 | R25: 1176379.14 | S25: 2424892.455 | T25: 718380.9235 | U25: 311943.84 | V25: 255673.97 | W25: 93668.12 | X25: 52078.43651 | Y25: 48320.97398 | Z25: 98599.20531 | AA25: 17599.57 | AB25: 220616.21 | AC25: 1949184.273 | AD25: 775870.563 | AE25: 1104811.185 | AF25: 1580509.586 | AG25: 674937.2115 | AH25: 36993.51732 | AI25: 101567.617 | AJ25: 185227.475 | AK25: 867583.5338 | AL25: 295397.3985 | AM25: 332500.19 | AN25: 19762.37 | AO25: 261714.96 | AP25: 53174.73 | AQ25: 60576.03 | AR25: 86111.88 | AS25: 0 | AT25: 0 | AU25: 0 | AV25: 0 | AW25: 0 | AX25: 0 | AY25: 0 | AZ25: 0 | BA25: 0 | BB25: 0 | BC25: 0 | BD25: 0 | BE25: 0 | BF25: 0 | BG25: 0 | BH25: 0 | BI25: 0 | BJ25: 0 | BK25: 0 | BL25: 0 | BM25: 0 | BN25: 0 | BO25: 0 | BP25: 0 | BQ25: 0 | BR25: 0 | BS25: 0 | BT25: 0 | BU25: 0 | BV25: 0 | BW25: 0 | BX25: 0 | BY25: 0 | BZ25: 0 | CA25: 0 | CB25: 0 | CC25: 0 | CD25: 0 | CE25: 0 | CF25: 0 | CG25: 3653205.55
A26: 25 | D26: (1 | E26: אגרות חוב ממשלתיות: | J26: 13532191.59 | K26: 1872.795734 | L26: 273642.6818 | M26: 3536592.596 | N26: 122062.1064 | O26: 3096893.45 | P26: 380436.4814 | Q26: 1484957.55 | R26: 446290.92 | S26: 315606.1244 | T26: 715804.2941 | U26: 13332.41 | V26: 255342.92 | W26: 116.35 | X26: 51891.64588 | Y26: 22532.58856 | Z26: 12832.94564 | AA26: 245.43 | AB26: 0 | AC26: 378166.8022 | AD26: 206656.6709 | AE26: 384880.7277 | AF26: 360062.5943 | AG26: 251471.2927 | AH26: 7177.217846 | AI26: 27052.99906 | AJ26: 64527.30234 | AK26: 197647.8857 | AL26: 110060.5573 | AM26: 0 | AN26: 0 | AO26: 0 | AP26: 0 | AQ26: 0 | AR26: 0 | AS26: 0 | AT26: 0 | AU26: 0 | AV26: 0 | AW26: 0 | AX26: 0 | AY26: 0 | AZ26: 0 | BA26: 0 | BB26: 0 | BC26: 0 | BD26: 0 | BE26: 0 | BF26: 0 | BG26: 0 | BH26: 0 | BI26: 0 | BJ26: 0 | BK26: 0 | BL26: 0 | BM26: 0 | BN26: 0 | BO26: 0 | BP26: 0 | BQ26: 0 | BR26: 0 | BS26: 0 | BT26: 0 | BU26: 0 | BV26: 0 | BW26: 0 | BX26: 0 | BY26: 0 | BZ26: 0 | CA26: 0 | CB26: 0 | CC26: 0 | CD26: 0 | CE26: 0 | CF26: 0 | CG26: 814034.25
A27: 26 | E27: א) | F27: בישראל | J27: 13532191.59 | K27: 1872.795734 | L27: 273642.6818 | M27: 3536592.596 | N27: 122062.1064 | O27: 3096893.45 | P27: 380436.4814 | Q27: 1484957.55 | R27: 446290.92 | S27: 315606.1244 | T27: 715804.2941 | U27: 13332.41 | V27: 255342.92 | W27: 116.35 | X27: 51891.64588 | Y27: 22532.58856 | Z27: 12832.94564 | AA27: 245.43 | AB27: 0 | AC27: 378166.8022 | AD27: 206656.6709 | AE27: 384880.7277 | AF27: 360062.5943 | AG27: 251471.2927 | AH27: 7177.217846 | AI27: 27052.99906 | AJ27: 64527.30234 | AK27: 197647.8857 | AL27: 110060.5573 | AM27: 0 | AN27: 0 | AO27: 0 | AP27: 0 | AQ27: 0 | AR27: 0 | AS27: 0 | AT27: 0 | AU27: 0 | AV27: 0 | AW27: 0 | AX27: 0 | AY27: 0 | AZ27: 0 | BA27: 0 | BB27: 0 | BC27: 0 | BD27: 0 | BE27: 0 | BF27: 0 | BG27: 0 | BH27: 0 | BI27: 0 | BJ27: 0 | BK27: 0 | BL27: 0 | BM27: 0 | BN27: 0 | BO27: 0 | BP27: 0 | BQ27: 0 | BR27: 0 | BS27: 0 | BT27: 0 | BU27: 0 | BV27: 0 | BW27: 0 | BX27: 0 | BY27: 0 | BZ27: 0 | CA27: 0 | CB27: 0 | CC27: 0 | CD27: 0 | CE27: 0 | CF27: 0 | CG27: 814034.25
A28: 27 | F28: (1) | G28: סחיר | J28: 13364761.2 | K28: 340.2357344 | L28: 107744.8518 | M28: 3536592.596 | N28: 122062.1064 | O28: 3096893.45 | P28: 380436.4814 | Q28: 1484957.55 | R28: 446290.92 | S28: 315606.1244 | T28: 715804.2941 | U28: 13332.41 | V28: 255342.92 | W28: 116.35 | X28: 51891.64588 | Y28: 22532.58856 | Z28: 12832.94564 | AA28: 245.43 | AB28: 0 | AC28: 378166.8022 | AD28: 206656.6709 | AE28: 384880.7277 | AF28: 360062.5943 | AG28: 251471.2927 | AH28: 7177.217846 | AI28: 27052.99906 | AJ28: 64527.30234 | AK28: 197647.8857 | AL28: 110060.5573 | AM28: 0 | AN28: 0 | AO28: 0 | AP28: 0 | AQ28: 0 | AR28: 0 | AS28: 0 | AT28: 0 | AU28: 0 | AV28: 0 | AW28: 0 | AX28: 0 | AY28: 0 | AZ28: 0 | BA28: 0 | BB28: 0 | BC28: 0 | BD28: 0 | BE28: 0 | BF28: 0 | BG28: 0 | BH28: 0 | BI28: 0 | BJ28: 0 | BK28: 0 | BL28: 0 | BM28: 0 | BN28: 0 | BO28: 0 | BP28: 0 | BQ28: 0 | BR28: 0 | BS28: 0 | BT28: 0 | BU28: 0 | BV28: 0 | BW28: 0 | BX28: 0 | BY28: 0 | BZ28: 0 | CA28: 0 | CB28: 0 | CC28: 0 | CD28: 0 | CE28: 0 | CF28: 0 | CG28: 814034.25
A29: 28 | G29: (א) | H29: צמוד מדד | J29: 7075418.03 | K29: 135.0488925 | L29: 42766.88614 | M29: 1403770.578 | N29: 48449.79707 | O29: 2706142.36 | P29: 68907.57466 | Q29: 683458.81 | R29: 232845.81 | S29: 0 | T29: 0 | V29: 90300.9 | W29: 76.64 | X29: 0 | Y29: 4081.275336 | Z29: 0 | AC29: 335252.5015 | AD29: 131351.2663 | AE29: 247672.943 | AF29: 179810.5378 | AG29: 126717.2474 | AH29: 6362.748457 | AI29: 17194.92368 | AJ29: 41523.68701 | AK29: 98702.76219 | AL29: 55459.89256 | CG29: 554433.84
A30: 29 | G30: (ג) | H30: לא צמוד בריבית קבועה | J30: 4149621.63 | K30: 151.4323053 | L30: 47955.13712 | M30: 1574068.552 | N30: 54327.46855 | O30: 333373.66 | P30: 248806.2597 | Q30: 692273.16 | R30: 180979.64 | S30: 28705.34426 | T30: 9878.552434 | U30: 1597.34 | V30: 124685.51 | W30: 23.88 | X30: 716.1375657 | Y30: 14736.36035 | Z30: 1167.195736 | AA30: 193.54 | AC30: 29596.96007 | AD30: 60839.18732 | AE30: 125142.2378 | AF30: 148118.7944 | AG30: 107413.9457 | AH30: 561.7199309 | AI30: 7964.332677 | AJ30: 20980.76218 | AK30: 81306.32562 | AL30: 47011.48429 | CG30: 207046.71
A31: 30 | G31: (ד) | H31: לא צמוד בריבית משתנה | J31: 497739.9 | K31: 22.16714418 | L31: 7019.826029 | M31: 230417.1786 | N31: 7952.628242 | O31: 27141.1 | P31: 35760.48869 | Q31: 59617.35 | R31: 15625.61 | S31: 3594.089749 | T31: 0 | U31: 205.64 | V31: 18820.86 | W31: 3.39 | X31: 0 | Y31: 2118.031308 | Z31: 146.1402514 | AA31: 27.58 | AC31: 3002.309251 | AD31: 8044.624747 | AE31: 4918.574764 | AF31: 18276.78764 | AG31: 9851.652053 | AH31: 56.98074874 | AI31: 1053.105253 | AJ31: 824.625236 | AK31: 10032.61236 | AL31: 4311.737947 | CG31: 28894.81
A32: 31 | G32: (ה) | H32: צמוד מט"ח | J32: 0 | K32: 0 | L32: 0 | M32: 0 | N32: 0 | P32: 0 | S32: 0 | T32: 0 | X32: 0 | Y32: 0 | Z32: 0 | AC32: 0 | AD32: 0 | AE32: 0 | AF32: 0 | AG32: 0 | AH32: 0 | AI32: 0 | AJ32: 0 | AK32: 0 | AL32: 0 | CG32: 0
A33: 32 | G33: (ו) | H33: מק"מ | J33: 1641981.64 | K33: 31.58739235 | L33: 10003.00252 | M33: 328336.2876 | N33: 11332.21251 | O33: 30236.33 | P33: 26962.15843 | Q33: 49608.23 | R33: 16839.86 | S33: 283306.6903 | T33: 705925.7417 | U33: 11529.43 | V33: 21535.65 | W33: 12.44 | X33: 51175.50831 | Y33: 1596.921569 | Z33: 11519.60965 | AA33: 24.31 | AC33: 10315.03129 | AD33: 6421.592549 | AE33: 7146.972092 | AF33: 13856.47449 | AG33: 7488.447492 | AH33: 195.768709 | AI33: 840.6374514 | AJ33: 1198.227908 | AK33: 7606.185507 | AL33: 3277.442508 | CG33: 23658.89
A34: 33 | F34: (2) | G34: לא סחיר | J34: 167430.39 | K34: 1532.56 | L34: 165897.83 | M34: 0 | N34: 0 | O34: 0 | P34: 0 | Q34: 0 | R34: 0 | S34: 0 | T34: 0 | U34: 0 | V34: 0 | W34: 0 | X34: 0 | Y34: 0 | Z34: 0 | AA34: 0 | AB34: 0 | AC34: 0 | AD34: 0 | AE34: 0 | AF34: 0 | AG34: 0 | AH34: 0 | AI34: 0 | AJ34: 0 | AK34: 0 | AL34: 0 | AM34: 0 | AN34: 0 | AO34: 0 | AP34: 0 | AQ34: 0 | AR34: 0 | AS34: 0 | AT34: 0 | AU34: 0 | AV34: 0 | AW34: 0 | AX34: 0 | AY34: 0 | AZ34: 0 | BA34: 0 | BB34: 0 | BC34: 0 | BD34: 0 | BE34: 0 | BF34: 0 | BG34: 0 | BH34: 0 | BI34: 0 | BJ34: 0 | BK34: 0 | BL34: 0 | BM34: 0 | BN34: 0 | BO34: 0 | BP34: 0 | BQ34: 0 | BR34: 0 | BS34: 0 | BT34: 0 | BU34: 0 | BV34: 0 | BW34: 0 | BX34: 0 | BY34: 0 | BZ34: 0 | CA34: 0 | CB34: 0 | CC34: 0 | CD34: 0 | CE34: 0 | CF34: 0 | CG34: 0
A35: 34 | G35: (א) | H35: אג"ח מיועדות - הסכמי "חץ" כולל אג"ח של חברת החשמל | J35: 167430.39 | K35: 1532.56 | L35: 165897.83 | M35: 0 | N35: 0 | P35: 0 | S35: 0 | T35: 0 | X35: 0 | Y35: 0 | Z35: 0 | AC35: 0 | AD35: 0 | AE35: 0 | AF35: 0 | AG35: 0 | AH35: 0 | AI35: 0 | AJ35: 0 | AK35: 0 | AL35: 0 | CG35: 0
A36: 35 | G36: (ב) | H36: אג"ח לא סחירות אחרות | J36: 0 | K36: 0 | L36: 0 | M36: 0 | N36: 0 | P36: 0 | S36: 0 | T36: 0 | X36: 0 | Y36: 0 | Z36: 0 | AC36: 0 | AD36: 0 | AE36: 0 | AF36: 0 | AG36: 0 | AH36: 0 | AI36: 0 | AJ36: 0 | AK36: 0 | AL36: 0 | CG36: 0
A37: 36 | E37: ב) | F37: בחו"ל | J37: 0 | K37: 0 | L37: 0 | M37: 0 | N37: 0 | O37: 0 | P37: 0 | Q37: 0 | R37: 0 | S37: 0 | T37: 0 | U37: 0 | V37: 0 | W37: 0 | X37: 0 | Y37: 0 | Z37: 0 | AA37: 0 | AB37: 0 | AC37: 0 | AD37: 0 | AE37: 0 | AF37: 0 | AG37: 0 | AH37: 0 | AI37: 0 | AJ37: 0 | AK37: 0 | AL37: 0 | AM37: 0 | AN37: 0 | AO37: 0 | AP37: 0 | AQ37: 0 | AR37: 0 | AS37: 0 | AT37: 0 | AU37: 0 | AV37: 0 | AW37: 0 | AX37: 0 | AY37: 0 | AZ37: 0 | BA37: 0 | BB37: 0 | BC37: 0 | BD37: 0 | BE37: 0 | BF37: 0 | BG37: 0 | BH37: 0 | BI37: 0 | BJ37: 0 | BK37: 0 | BL37: 0 | BM37: 0 | BN37: 0 | BO37: 0 | BP37: 0 | BQ37: 0 | BR37: 0 | BS37: 0 | BT37: 0 | BU37: 0 | BV37: 0 | BW37: 0 | BX37: 0 | BY37: 0 | BZ37: 0 | CA37: 0 | CB37: 0 | CC37: 0 | CD37: 0 | CE37: 0 | CF37: 0 | CG37: 0
A38: 37 | F38: (1) | G38: סחיר | J38: 0 | K38: 0 | L38: 0 | M38: 0 | N38: 0 | O38: 0 | P38: 0 | Q38: 0 | R38: 0 | S38: 0 | T38: 0 | U38: 0 | V38: 0 | W38: 0 | X38: 0 | Y38: 0 | Z38: 0 | AA38: 0 | AB38: 0 | AC38: 0 | AD38: 0 | AE38: 0 | AF38: 0 | AG38: 0 | AH38: 0 | AI38: 0 | AJ38: 0 | AK38: 0 | AL38: 0 | AM38: 0 | AN38: 0 | AO38: 0 | AP38: 0 | AQ38: 0 | AR38: 0 | AS38: 0 | AT38: 0 | AU38: 0 | AV38: 0 | AW38: 0 | AX38: 0 | AY38: 0 | AZ38: 0 | BA38: 0 | BB38: 0 | BC38: 0 | BD38: 0 | BE38: 0 | BF38: 0 | BG38: 0 | BH38: 0 | BI38: 0 | BJ38: 0 | BK38: 0 | BL38: 0 | BM38: 0 | BN38: 0 | BO38: 0 | BP38: 0 | BQ38: 0 | BR38: 0 | BS38: 0 | BT38: 0 | BU38: 0 | BV38: 0 | BW38: 0 | BX38: 0 | BY38: 0 | BZ38: 0 | CA38: 0 | CB38: 0 | CC38: 0 | CD38: 0 | CE38: 0 | CF38: 0 | CG38: 0
A39: 38 | G39: (א) | H39: ממשלת ישראל שהונפקו בחו"ל | J39: 0 | K39: 0 | L39: 0 | M39: 0 | N39: 0 | P39: 0 | S39: 0 | T39: 0 | X39: 0 | Y39: 0 | Z39: 0 | AC39: 0 | AD39: 0 | AE39: 0 | AF39: 0 | AG39: 0 | AH39: 0 | AI39: 0 | AJ39: 0 | AK39: 0 | AL39: 0 | CG39: 0
A40: 39 | G40: (ב) | H40: שהנפיקה ממשלה זרה | J40: 0 | K40: 0 | L40: 0 | M40: 0 | N40: 0 | P40: 0 | S40: 0 | T40: 0 | X40: 0 | Y40: 0 | Z40: 0 | AC40: 0 | AD40: 0 | AE40: 0 | AF40: 0 | AG40: 0 | AH40: 0 | AI40: 0 | AJ40: 0 | AK40: 0 | AL40: 0 | CG40: 0
A41: 40 | F41: (2) | G41: לא סחיר | J41: 0 | K41: 0 | L41: 0 | M41: 0 | N41: 0 | O41: 0 | P41: 0 | Q41: 0 | R41: 0 | S41: 0 | T41: 0 | U41: 0 | V41: 0 | W41: 0 | X41: 0 | Y41: 0 | Z41: 0 | AA41: 0 | AB41: 0 | AC41: 0 | AD41: 0 | AE41: 0 | AF41: 0 | AG41: 0 | AH41: 0 | AI41: 0 | AJ41: 0 | AK41: 0 | AL41: 0 | AM41: 0 | AN41: 0 | AO41: 0 | AP41: 0 | AQ41: 0 | AR41: 0 | AS41: 0 | AT41: 0 | AU41: 0 | AV41: 0 | AW41: 0 | AX41: 0 | AY41: 0 | AZ41: 0 | BA41: 0 | BB41: 0 | BC41: 0 | BD41: 0 | BE41: 0 | BF41: 0 | BG41: 0 | BH41: 0 | BI41: 0 | BJ41: 0 | BK41: 0 | BL41: 0 | BM41: 0 | BN41: 0 | BO41: 0 | BP41: 0 | BQ41: 0 | BR41: 0 | BS41: 0 | BT41: 0 | BU41: 0 | BV41: 0 | BW41: 0 | BX41: 0 | BY41: 0 | BZ41: 0 | CA41: 0 | CB41: 0 | CC41: 0 | CD41: 0 | CE41: 0 | CF41: 0 | CG41: 0
A42: 41 | G42: (א) | H42: ממשלת ישראל שהונפקו בחו"ל | J42: 0 | K42: 0 | L42: 0 | M42: 0 | N42: 0 | P42: 0 | S42: 0 | T42: 0 | X42: 0 | Y42: 0 | Z42: 0 | AC42: 0 | AD42: 0 | AE42: 0 | AF42: 0 | AG42: 0 | AH42: 0 | AI42: 0 | AJ42: 0 | AK42: 0 | AL42: 0 | CG42: 0
A43: 42 | G43: (ב) | H43: שהנפיקה ממשלה זרה | J43: 0 | K43: 0 | L43: 0 | M43: 0 | N43: 0 | P43: 0 | S43: 0 | T43: 0 | X43: 0 | Y43: 0 | Z43: 0 | AC43: 0 | AD43: 0 | AE43: 0 | AF43: 0 | AG43: 0 | AH43: 0 | AI43: 0 | AJ43: 0 | AK43: 0 | AL43: 0 | CG43: 0
A44: 43 | AC44: 0 | AD44: 0 | AE44: 0 | AF44: 0 | AG44: 0 | AH44: 0 | AI44: 0 | AJ44: 0 | AK44: 0 | AL44: 0 | CG44: 0
A45: 44 | D45: (2 | E45: תעודות חוב מסחריות: | J45: 0 | K45: 0 | L45: 0 | M45: 0 | N45: 0 | O45: 0 | P45: 0 | Q45: 0 | R45: 0 | S45: 0 | T45: 0 | U45: 0 | V45: 0 | W45: 0 | X45: 0 | Y45: 0 | Z45: 0 | AA45: 0 | AB45: 0 | AC45: 0 | AD45: 0 | AE45: 0 | AF45: 0 | AG45: 0 | AH45: 0 | AI45: 0 | AJ45: 0 | AK45: 0 | AL45: 0 | AM45: 0 | AN45: 0 | AO45: 0 | AP45: 0 | AQ45: 0 | AR45: 0 | AS45: 0 | AT45: 0 | AU45: 0 | AV45: 0 | AW45: 0 | AX45: 0 | AY45: 0 | AZ45: 0 | BA45: 0 | BB45: 0 | BC45: 0 | BD45: 0 | BE45: 0 | BF45: 0 | BG45: 0 | BH45: 0 | BI45: 0 | BJ45: 0 | BK45: 0 | BL45: 0 | BM45: 0 | BN45: 0 | BO45: 0 | BP45: 0 | BQ45: 0 | BR45: 0 | BS45: 0 | BT45: 0 | BU45: 0 | BV45: 0 | BW45: 0 | BX45: 0 | BY45: 0 | BZ45: 0 | CA45: 0 | CB45: 0 | CC45: 0 | CD45: 0 | CE45: 0 | CF45: 0 | CG45: 0
A46: 45 | E46: א) | F46: בישראל | J46: 0 | K46: 0 | L46: 0 | M46: 0 | N46: 0 | O46: 0 | P46: 0 | Q46: 0 | R46: 0 | S46: 0 | T46: 0 | U46: 0 | V46: 0 | W46: 0 | X46: 0 | Y46: 0 | Z46: 0 | AA46: 0 | AB46: 0 | AC46: 0 | AD46: 0 | AE46: 0 | AF46: 0 | AG46: 0 | AH46: 0 | AI46: 0 | AJ46: 0 | AK46: 0 | AL46: 0 | AM46: 0 | AN46: 0 | AO46: 0 | AP46: 0 | AQ46: 0 | AR46: 0 | AS46: 0 | AT46: 0 | AU46: 0 | AV46: 0 | AW46: 0 | AX46: 0 | AY46: 0 | AZ46: 0 | BA46: 0 | BB46: 0 | BC46: 0 | BD46: 0 | BE46: 0 | BF46: 0 | BG46: 0 | BH46: 0 | BI46: 0 | BJ46: 0 | BK46: 0 | BL46: 0 | BM46: 0 | BN46: 0 | BO46: 0 | BP46: 0 | BQ46: 0 | BR46: 0 | BS46: 0 | BT46: 0 | BU46: 0 | BV46: 0 | BW46: 0 | BX46: 0 | BY46: 0 | BZ46: 0 | CA46: 0 | CB46: 0 | CC46: 0 | CD46: 0 | CE46: 0 | CF46: 0 | CG46: 0
A47: 46 | F47: (1) | G47: סחיר | J47: 0 | K47: 0 | L47: 0 | M47: 0 | N47: 0 | O47: 0 | P47: 0 | Q47: 0 | R47: 0 | S47: 0 | T47: 0 | U47: 0 | V47: 0 | W47: 0 | X47: 0 | Y47: 0 | Z47: 0 | AA47: 0 | AB47: 0 | AC47: 0 | AD47: 0 | AE47: 0 | AF47: 0 | AG47: 0 | AH47: 0 | AI47: 0 | AJ47: 0 | AK47: 0 | AL47: 0 | AM47: 0 | AN47: 0 | AO47: 0 | AP47: 0 | AQ47: 0 | AR47: 0 | AS47: 0 | AT47: 0 | AU47: 0 | AV47: 0 | AW47: 0 | AX47: 0 | AY47: 0 | AZ47: 0 | BA47: 0 | BB47: 0 | BC47: 0 | BD47: 0 | BE47: 0 | BF47: 0 | BG47: 0 | BH47: 0 | BI47: 0 | BJ47: 0 | BK47: 0 | BL47: 0 | BM47: 0 | BN47: 0 | BO47: 0 | BP47: 0 | BQ47: 0 | BR47: 0 | BS47: 0 | BT47: 0 | BU47: 0 | BV47: 0 | BW47: 0 | BX47: 0 | BY47: 0 | BZ47: 0 | CA47: 0 | CB47: 0 | CC47: 0 | CD47: 0 | CE47: 0 | CF47: 0 | CG47: 0
A48: 47 | G48: (א) | H48: דרוג AA- ומעלה | J48: 0 | K48: 0 | L48: 0 | M48: 0 | N48: 0 | O48: 0 | P48: 0 | Q48: 0 | R48: 0 | S48: 0 | T48: 0 | U48: 0 | V48: 0 | W48: 0 | X48: 0 | Y48: 0 | Z48: 0 | AA48: 0 | AB48: 0 | AC48: 0 | AD48: 0 | AE48: 0 | AF48: 0 | AG48: 0 | AH48: 0 | AI48: 0 | AJ48: 0 | AK48: 0 | AL48: 0 | AM48: 0 | AN48: 0 | AO48: 0 | AP48: 0 | AQ48: 0 | AR48: 0 | AS48: 0 | AT48: 0 | AU48: 0 | AV48: 0 | AW48: 0 | AX48: 0 | AY48: 0 | AZ48: 0 | BA48: 0 | BB48: 0 | BC48: 0 | BD48: 0 | BE48: 0 | BF48: 0 | BG48: 0 | BH48: 0 | BI48: 0 | BJ48: 0 | BK48: 0 | BL48: 0 | BM48: 0 | BN48: 0 | BO48: 0 | BP48: 0 | BQ48: 0 | BR48: 0 | BS48: 0 | BT48: 0 | BU48: 0 | BV48: 0 | BW48: 0 | BX48: 0 | BY48: 0 | BZ48: 0 | CA48: 0 | CB48: 0 | CC48: 0 | CD48: 0 | CE48: 0 | CF48: 0 | CG48: 0
A49: 48 | H49: a | I49: צמוד מדד | J49: 0 | K49: 0 | L49: 0 | M49: 0 | N49: 0 | P49: 0 | S49: 0 | T49: 0 | X49: 0 | Y49: 0 | Z49: 0 | AC49: 0 | AD49: 0 | AE49: 0 | AF49: 0 | AG49: 0 | AH49: 0 | AI49: 0 | AJ49: 0 | AK49: 0 | AL49: 0 | CG49: 0
A50: 49 | H50: b | I50: לא צמוד | J50: 0 | K50: 0 | L50: 0 | M50: 0 | N50: 0 | P50: 0 | S50: 0 | T50: 0 | X50: 0 | Y50: 0 | Z50: 0 | AC50: 0 | AD50: 0 | AE50: 0 | AF50: 0 | AG50: 0 | AH50: 0 | AI50: 0 | AJ50: 0 | AK50: 0 | AL50: 0 | CG50: 0
A51: 50 | H51: c | I51: צמוד מט"ח | J51: 0 | K51: 0 | L51: 0 | M51: 0 | N51: 0 | P51: 0 | S51: 0 | T51: 0 | X51: 0 | Y51: 0 | Z51: 0 | AC51: 0 | AD51: 0 | AE51: 0 | AF51: 0 | AG51: 0 | AH51: 0 | AI51: 0 | AJ51: 0 | AK51: 0 | AL51: 0 | CG51: 0
A52: 51 | G52: (ב) | H52: דרוג BBB- ועד A+ | J52: 0 | K52: 0 | L52: 0 | M52: 0 | N52: 0 | O52: 0 | P52: 0 | Q52: 0 | R52: 0 | S52: 0 | T52: 0 | U52: 0 | V52: 0 | W52: 0 | X52: 0 | Y52: 0 | Z52: 0 | AA52: 0 | AB52: 0 | AC52: 0 | AD52: 0 | AE52: 0 | AF52: 0 | AG52: 0 | AH52: 0 | AI52: 0 | AJ52: 0 | AK52: 0 | AL52: 0 | AM52: 0 | AN52: 0 | AO52: 0 | AP52: 0 | AQ52: 0 | AR52: 0 | AS52: 0 | AT52: 0 | AU52: 0 | AV52: 0 | AW52: 0 | AX52: 0 | AY52: 0 | AZ52: 0 | BA52: 0 | BB52: 0 | BC52: 0 | BD52: 0 | BE52: 0 | BF52: 0 | BG52: 0 | BH52: 0 | BI52: 0 | BJ52: 0 | BK52: 0 | BL52: 0 | BM52: 0 | BN52: 0 | BO52: 0 | BP52: 0 | BQ52: 0 | BR52: 0 | BS52: 0 | BT52: 0 | BU52: 0 | BV52: 0 | BW52: 0 | BX52: 0 | BY52: 0 | BZ52: 0 | CA52: 0 | CB52: 0 | CC52: 0 | CD52: 0 | CE52: 0 | CF52: 0 | CG52: 0
A53: 52 | H53: a | I53: צמוד מדד | J53: 0 | K53: 0 | L53: 0 | M53: 0 | N53: 0 | P53: 0 | S53: 0 | T53: 0 | X53: 0 | Y53: 0 | Z53: 0 | AC53: 0 | AD53: 0 | AE53: 0 | AF53: 0 | AG53: 0 | AH53: 0 | AI53: 0 | AJ53: 0 | AK53: 0 | AL53: 0 | CG53: 0
A54: 53 | H54: b | I54: לא צמוד | J54: 0 | K54: 0 | L54: 0 | M54: 0 | N54: 0 | P54: 0 | S54: 0 | T54: 0 | X54: 0 | Y54: 0 | Z54: 0 | AC54: 0 | AD54: 0 | AE54: 0 | AF54: 0 | AG54: 0 | AH54: 0 | AI54: 0 | AJ54: 0 | AK54: 0 | AL54: 0 | CG54: 0
A55: 54 | H55: c | I55: צמוד מט"ח | J55: 0 | K55: 0 | L55: 0 | M55: 0 | N55: 0 | P55: 0 | S55: 0 | T55: 0 | X55: 0 | Y55: 0 | Z55: 0 | AC55: 0 | AD55: 0 | AE55: 0 | AF55: 0 | AG55: 0 | AH55: 0 | AI55: 0 | AJ55: 0 | AK55: 0 | AL55: 0 | CG55: 0
A56: 55 | G56: (ג) | H56: דרוג נמוך מ- BBB- או לא מדורג | J56: 0 | K56: 0 | L56: 0 | M56: 0 | N56: 0 | O56: 0 | P56: 0 | Q56: 0 | R56: 0 | S56: 0 | T56: 0 | U56: 0 | V56: 0 | W56: 0 | X56: 0 | Y56: 0 | Z56: 0 | AA56: 0 | AB56: 0 | AC56: 0 | AD56: 0 | AE56: 0 | AF56: 0 | AG56: 0 | AH56: 0 | AI56: 0 | AJ56: 0 | AK56: 0 | AL56: 0 | AM56: 0 | AN56: 0 | AO56: 0 | AP56: 0 | AQ56: 0 | AR56: 0 | AS56: 0 | AT56: 0 | AU56: 0 | AV56: 0 | AW56: 0 | AX56: 0 | AY56: 0 | AZ56: 0 | BA56: 0 | BB56: 0 | BC56: 0 | BD56: 0 | BE56: 0 | BF56: 0 | BG56: 0 | BH56: 0 | BI56: 0 | BJ56: 0 | BK56: 0 | BL56: 0 | BM56: 0 | BN56: 0 | BO56: 0 | BP56: 0 | BQ56: 0 | BR56: 0 | BS56: 0 | BT56: 0 | BU56: 0 | BV56: 0 | BW56: 0 | BX56: 0 | BY56: 0 | BZ56: 0 | CA56: 0 | CB56: 0 | CC56: 0 | CD56: 0 | CE56: 0 | CF56: 0 | CG56: 0
A57: 56 | H57: a | I57: צמוד מדד | J57: 0 | K57: 0 | L57: 0 | M57: 0 | N57: 0 | P57: 0 | S57: 0 | T57: 0 | X57: 0 | Y57: 0 | Z57: 0 | AC57: 0 | AD57: 0 | AE57: 0 | AF57: 0 | AG57: 0 | AH57: 0 | AI57: 0 | AJ57: 0 | AK57: 0 | AL57: 0 | CG57: 0
A58: 57 | H58: b | I58: לא צמוד | J58: 0 | K58: 0 | L58: 0 | M58: 0 | N58: 0 | P58: 0 | S58: 0 | T58: 0 | X58: 0 | Y58: 0 | Z58: 0 | AC58: 0 | AD58: 0 | AE58: 0 | AF58: 0 | AG58: 0 | AH58: 0 | AI58: 0 | AJ58: 0 | AK58: 0 | AL58: 0 | CG58: 0
A59: 58 | H59: c | I59: צמוד מט"ח | J59: 0 | K59: 0 | L59: 0 | M59: 0 | N59: 0 | P59: 0 | S59: 0 | T59: 0 | X59: 0 | Y59: 0 | Z59: 0 | AC59: 0 | AD59: 0 | AE59: 0 | AF59: 0 | AG59: 0 | AH59: 0 | AI59: 0 | AJ59: 0 | AK59: 0 | AL59: 0 | CG59: 0
A60: 59 | F60: (2) | G60: לא סחיר | J60: 0 | K60: 0 | L60: 0 | M60: 0 | N60: 0 | O60: 0 | P60: 0 | Q60: 0 | R60: 0 | S60: 0 | T60: 0 | U60: 0 | V60: 0 | W60: 0 | X60: 0 | Y60: 0 | Z60: 0 | AA60: 0 | AB60: 0 | AC60: 0 | AD60: 0 | AE60: 0 | AF60: 0 | AG60: 0 | AH60: 0 | AI60: 0 | AJ60: 0 | AK60: 0 | AL60: 0 | AM60: 0 | AN60: 0 | AO60: 0 | AP60: 0 | AQ60: 0 | AR60: 0 | AS60: 0 | AT60: 0 | AU60: 0 | AV60: 0 | AW60: 0 | AX60: 0 | AY60: 0 | AZ60: 0 | BA60: 0 | BB60: 0 | BC60: 0 | BD60: 0 | BE60: 0 | BF60: 0 | BG60: 0 | BH60: 0 | BI60: 0 | BJ60: 0 | BK60: 0 | BL60: 0 | BM60: 0 | BN60: 0 | BO60: 0 | BP60: 0 | BQ60: 0 | BR60: 0 | BS60: 0 | BT60: 0 | BU60: 0 | BV60: 0 | BW60: 0 | BX60: 0 | BY60: 0 | BZ60: 0 | CA60: 0 | CB60: 0 | CC60: 0 | CD60: 0 | CE60: 0 | CF60: 0 | CG60: 0
A61: 60 | G61: (א) | H61: =$H$48 -> דרוג AA- ומעלה | J61: 0 | K61: 0 | L61: 0 | M61: 0 | N61: 0 | O61: 0 | P61: 0 | Q61: 0 | R61: 0 | S61: 0 | T61: 0 | U61: 0 | V61: 0 | W61: 0 | X61: 0 | Y61: 0 | Z61: 0 | AA61: 0 | AB61: 0 | AC61: 0 | AD61: 0 | AE61: 0 | AF61: 0 | AG61: 0 | AH61: 0 | AI61: 0 | AJ61: 0 | AK61: 0 | AL61: 0 | AM61: 0 | AN61: 0 | AO61: 0 | AP61: 0 | AQ61: 0 | AR61: 0 | AS61: 0 | AT61: 0 | AU61: 0 | AV61: 0 | AW61: 0 | AX61: 0 | AY61: 0 | AZ61: 0 | BA61: 0 | BB61: 0 | BC61: 0 | BD61: 0 | BE61: 0 | BF61: 0 | BG61: 0 | BH61: 0 | BI61: 0 | BJ61: 0 | BK61: 0 | BL61: 0 | BM61: 0 | BN61: 0 | BO61: 0 | BP61: 0 | BQ61: 0 | BR61: 0 | BS61: 0 | BT61: 0 | BU61: 0 | BV61: 0 | BW61: 0 | BX61: 0 | BY61: 0 | BZ61: 0 | CA61: 0 | CB61: 0 | CC61: 0 | CD61: 0 | CE61: 0 | CF61: 0 | CG61: 0
A62: 61 | H62: a | I62: צמוד מדד | J62: 0 | K62: 0 | L62: 0 | M62: 0 | N62: 0 | P62: 0 | S62: 0 | T62: 0 | X62: 0 | Y62: 0 | Z62: 0 | AC62: 0 | AD62: 0 | AE62: 0 | AF62: 0 | AG62: 0 | AH62: 0 | AI62: 0 | AJ62: 0 | AK62: 0 | AL62: 0 | CG62: 0
A63: 62 | H63: b | I63: לא צמוד | J63: 0 | K63: 0 | L63: 0 | M63: 0 | N63: 0 | P63: 0 | S63: 0 | T63: 0 | X63: 0 | Y63: 0 | Z63: 0 | AC63: 0 | AD63: 0 | AE63: 0 | AF63: 0 | AG63: 0 | AH63: 0 | AI63: 0 | AJ63: 0 | AK63: 0 | AL63: 0 | CG63: 0
A64: 63 | H64: c | I64: צמוד מט"ח | J64: 0 | K64: 0 | L64: 0 | M64: 0 | N64: 0 | P64: 0 | S64: 0 | T64: 0 | X64: 0 | Y64: 0 | Z64: 0 | AC64: 0 | AD64: 0 | AE64: 0 | AF64: 0 | AG64: 0 | AH64: 0 | AI64: 0 | AJ64: 0 | AK64: 0 | AL64: 0 | CG64: 0
A65: 64 | G65: (ב) | H65: =$H$52 -> דרוג BBB- ועד A+ | J65: 0 | K65: 0 | L65: 0 | M65: 0 | N65: 0 | O65: 0 | P65: 0 | Q65: 0 | R65: 0 | S65: 0 | T65: 0 | U65: 0 | V65: 0 | W65: 0 | X65: 0 | Y65: 0 | Z65: 0 | AA65: 0 | AB65: 0 | AC65: 0 | AD65: 0 | AE65: 0 | AF65: 0 | AG65: 0 | AH65: 0 | AI65: 0 | AJ65: 0 | AK65: 0 | AL65: 0 | AM65: 0 | AN65: 0 | AO65: 0 | AP65: 0 | AQ65: 0 | AR65: 0 | AS65: 0 | AT65: 0 | AU65: 0 | AV65: 0 | AW65: 0 | AX65: 0 | AY65: 0 | AZ65: 0 | BA65: 0 | BB65: 0 | BC65: 0 | BD65: 0 | BE65: 0 | BF65: 0 | BG65: 0 | BH65: 0 | BI65: 0 | BJ65: 0 | BK65: 0 | BL65: 0 | BM65: 0 | BN65: 0 | BO65: 0 | BP65: 0 | BQ65: 0 | BR65: 0 | BS65: 0 | BT65: 0 | BU65: 0 | BV65: 0 | BW65: 0 | BX65: 0 | BY65: 0 | BZ65: 0 | CA65: 0 | CB65: 0 | CC65: 0 | CD65: 0 | CE65: 0 | CF65: 0 | CG65: 0
A66: 65 | H66: a | I66: צמוד מדד | J66: 0 | K66: 0 | L66: 0 | M66: 0 | N66: 0 | P66: 0 | S66: 0 | T66: 0 | X66: 0 | Y66: 0 | Z66: 0 | AC66: 0 | AD66: 0 | AE66: 0 | AF66: 0 | AG66: 0 | AH66: 0 | AI66: 0 | AJ66: 0 | AK66: 0 | AL66: 0 | CG66: 0
A67: 66 | H67: b | I67: לא צמוד | J67: 0 | K67: 0 | L67: 0 | M67: 0 | N67: 0 | P67: 0 | S67: 0 | T67: 0 | X67: 0 | Y67: 0 | Z67: 0 | AC67: 0 | AD67: 0 | AE67: 0 | AF67: 0 | AG67: 0 | AH67: 0 | AI67: 0 | AJ67: 0 | AK67: 0 | AL67: 0 | CG67: 0
A68: 67 | H68: c | I68: צמוד מט"ח | J68: 0 | K68: 0 | L68: 0 | M68: 0 | N68: 0 | P68: 0 | S68: 0 | T68: 0 | X68: 0 | Y68: 0 | Z68: 0 | AC68: 0 | AD68: 0 | AE68: 0 | AF68: 0 | AG68: 0 | AH68: 0 | AI68: 0 | AJ68: 0 | AK68: 0 | AL68: 0 | CG68: 0
A69: 68 | G69: (ג) | H69: בדרוג נמוך מ- BBB- או לא מדורג עם בטוחה מספקת | J69: 0 | K69: 0 | L69: 0 | M69: 0 | N69: 0 | O69: 0 | P69: 0 | Q69: 0 | R69: 0 | S69: 0 | T69: 0 | U69: 0 | V69: 0 | W69: 0 | X69: 0 | Y69: 0 | Z69: 0 | AA69: 0 | AB69: 0 | AC69: 0 | AD69: 0 | AE69: 0 | AF69: 0 | AG69: 0 | AH69: 0 | AI69: 0 | AJ69: 0 | AK69: 0 | AL69: 0 | AM69: 0 | AN69: 0 | AO69: 0 | AP69: 0 | AQ69: 0 | AR69: 0 | AS69: 0 | AT69: 0 | AU69: 0 | AV69: 0 | AW69: 0 | AX69: 0 | AY69: 0 | AZ69: 0 | BA69: 0 | BB69: 0 | BC69: 0 | BD69: 0 | BE69: 0 | BF69: 0 | BG69: 0 | BH69: 0 | BI69: 0 | BJ69: 0 | BK69: 0 | BL69: 0 | BM69: 0 | BN69: 0 | BO69: 0 | BP69: 0 | BQ69: 0 | BR69: 0 | BS69: 0 | BT69: 0 | BU69: 0 | BV69: 0 | BW69: 0 | BX69: 0 | BY69: 0 | BZ69: 0 | CA69: 0 | CB69: 0 | CC69: 0 | CD69: 0 | CE69: 0 | CF69: 0 | CG69: 0
A70: 69 | H70: a | I70: צמוד מדד | J70: 0 | K70: 0 | L70: 0 | M70: 0 | N70: 0 | P70: 0 | S70: 0 | T70: 0 | X70: 0 | Y70: 0 | Z70: 0 | AC70: 0 | AD70: 0 | AE70: 0 | AF70: 0 | AG70: 0 | AH70: 0 | AI70: 0 | AJ70: 0 | AK70: 0 | AL70: 0 | CG70: 0
A71: 70 | H71: b | I71: לא צמוד | J71: 0 | K71: 0 | L71: 0 | M71: 0 | N71: 0 | P71: 0 | S71: 0 | T71: 0 | X71: 0 | Y71: 0 | Z71: 0 | AC71: 0 | AD71: 0 | AE71: 0 | AF71: 0 | AG71: 0 | AH71: 0 | AI71: 0 | AJ71: 0 | AK71: 0 | AL71: 0 | CG71: 0
A72: 71 | H72: c | I72: צמוד מט"ח | J72: 0 | K72: 0 | L72: 0 | M72: 0 | N72: 0 | P72: 0 | S72: 0 | T72: 0 | X72: 0 | Y72: 0 | Z72: 0 | AC72: 0 | AD72: 0 | AE72: 0 | AF72: 0 | AG72: 0 | AH72: 0 | AI72: 0 | AJ72: 0 | AK72: 0 | AL72: 0 | CG72: 0
A73: 72 | G73: (ד) | H73: =$H$56 -> דרוג נמוך מ- BBB- או לא מדורג | J73: 0 | K73: 0 | L73: 0 | M73: 0 | N73: 0 | O73: 0 | P73: 0 | Q73: 0 | R73: 0 | S73: 0 | T73: 0 | U73: 0 | V73: 0 | W73: 0 | X73: 0 | Y73: 0 | Z73: 0 | AA73: 0 | AB73: 0 | AC73: 0 | AD73: 0 | AE73: 0 | AF73: 0 | AG73: 0 | AH73: 0 | AI73: 0 | AJ73: 0 | AK73: 0 | AL73: 0 | AM73: 0 | AN73: 0 | AO73: 0 | AP73: 0 | AQ73: 0 | AR73: 0 | AS73: 0 | AT73: 0 | AU73: 0 | AV73: 0 | AW73: 0 | AX73: 0 | AY73: 0 | AZ73: 0 | BA73: 0 | BB73: 0 | BC73: 0 | BD73: 0 | BE73: 0 | BF73: 0 | BG73: 0 | BH73: 0 | BI73: 0 | BJ73: 0 | BK73: 0 | BL73: 0 | BM73: 0 | BN73: 0 | BO73: 0 | BP73: 0 | BQ73: 0 | BR73: 0 | BS73: 0 | BT73: 0 | BU73: 0 | BV73: 0 | BW73: 0 | BX73: 0 | BY73: 0 | BZ73: 0 | CA73: 0 | CB73: 0 | CC73: 0 | CD73: 0 | CE73: 0 | CF73: 0 | CG73: 0
A74: 73 | H74: a | I74: צמוד מדד | J74: 0 | K74: 0 | L74: 0 | M74: 0 | N74: 0 | P74: 0 | S74: 0 | T74: 0 | X74: 0 | Y74: 0 | Z74: 0 | AC74: 0 | AD74: 0 | AE74: 0 | AF74: 0 | AG74: 0 | AH74: 0 | AI74: 0 | AJ74: 0 | AK74: 0 | AL74: 0 | CG74: 0
A75: 74 | H75: b | I75: לא צמוד | J75: 0 | K75: 0 | L75: 0 | M75: 0 | N75: 0 | P75: 0 | S75: 0 | T75: 0 | X75: 0 | Y75: 0 | Z75: 0 | AC75: 0 | AD75: 0 | AE75: 0 | AF75: 0 | AG75: 0 | AH75: 0 | AI75: 0 | AJ75: 0 | AK75: 0 | AL75: 0 | CG75: 0
A76: =A75+1 -> 75 | H76: c | I76: צמוד מט"ח | J76: 0 | K76: 0 | L76: 0 | M76: 0 | N76: 0 | P76: 0 | S76: 0 | T76: 0 | X76: 0 | Y76: 0 | Z76: 0 | AC76: 0 | AD76: 0 | AE76: 0 | AF76: 0 | AG76: 0 | AH76: 0 | AI76: 0 | AJ76: 0 | AK76: 0 | AL76: 0 | CG76: 0
A77: 76 | E77: ב) | F77: בחו"ל | J77: 0 | K77: 0 | L77: 0 | M77: 0 | N77: 0 | O77: 0 | P77: 0 | Q77: 0 | R77: 0 | S77: 0 | T77: 0 | U77: 0 | V77: 0 | W77: 0 | X77: 0 | Y77: 0 | Z77: 0 | AA77: 0 | AB77: 0 | AC77: 0 | AD77: 0 | AE77: 0 | AF77: 0 | AG77: 0 | AH77: 0 | AI77: 0 | AJ77: 0 | AK77: 0 | AL77: 0 | AM77: 0 | AN77: 0 | AO77: 0 | AP77: 0 | AQ77: 0 | AR77: 0 | AS77: 0 | AT77: 0 | AU77: 0 | AV77: 0 | AW77: 0 | AX77: 0 | AY77: 0 | AZ77: 0 | BA77: 0 | BB77: 0 | BC77: 0 | BD77: 0 | BE77: 0 | BF77: 0 | BG77: 0 | BH77: 0 | BI77: 0 | BJ77: 0 | BK77: 0 | BL77: 0 | BM77: 0 | BN77: 0 | BO77: 0 | BP77: 0 | BQ77: 0 | BR77: 0 | BS77: 0 | BT77: 0 | BU77: 0 | BV77: 0 | BW77: 0 | BX77: 0 | BY77: 0 | BZ77: 0 | CA77: 0 | CB77: 0 | CC77: 0 | CD77: 0 | CE77: 0 | CF77: 0 | CG77: 0
A78: 77 | F78: (1) | G78: סחיר - חברות ישראליות | J78: 0 | K78: 0 | L78: 0 | M78: 0 | N78: 0 | O78: 0 | P78: 0 | Q78: 0 | R78: 0 | S78: 0 | T78: 0 | U78: 0 | V78: 0 | W78: 0 | X78: 0 | Y78: 0 | Z78: 0 | AA78: 0 | AB78: 0 | AC78: 0 | AD78: 0 | AE78: 0 | AF78: 0 | AG78: 0 | AH78: 0 | AI78: 0 | AJ78: 0 | AK78: 0 | AL78: 0 | AM78: 0 | AN78: 0 | AO78: 0 | AP78: 0 | AQ78: 0 | AR78: 0 | AS78: 0 | AT78: 0 | AU78: 0 | AV78: 0 | AW78: 0 | AX78: 0 | AY78: 0 | AZ78: 0 | BA78: 0 | BB78: 0 | BC78: 0 | BD78: 0 | BE78: 0 | BF78: 0 | BG78: 0 | BH78: 0 | BI78: 0 | BJ78: 0 | BK78: 0 | BL78: 0 | BM78: 0 | BN78: 0 | BO78: 0 | BP78: 0 | BQ78: 0 | BR78: 0 | BS78: 0 | BT78: 0 | BU78: 0 | BV78: 0 | BW78: 0 | BX78: 0 | BY78: 0 | BZ78: 0 | CA78: 0 | CB78: 0 | CC78: 0 | CD78: 0 | CE78: 0 | CF78: 0 | CG78: 0
A79: 78 | G79: (א) | H79: דרוג A- ומעלה | J79: 0 | K79: 0 | L79: 0 | M79: 0 | N79: 0 | P79: 0 | S79: 0 | T79: 0 | X79: 0 | Y79: 0 | Z79: 0 | AC79: 0 | AD79: 0 | AE79: 0 | AF79: 0 | AG79: 0 | AH79: 0 | AI79: 0 | AJ79: 0 | AK79: 0 | AL79: 0 | CG79: 0
A80: 79 | G80: (ב) | H80: דרוג BBB- ועד BBB+ | J80: 0 | K80: 0 | L80: 0 | M80: 0 | N80: 0 | P80: 0 | S80: 0 | T80: 0 | X80: 0 | Y80: 0 | Z80: 0 | AC80: 0 | AD80: 0 | AE80: 0 | AF80: 0 | AG80: 0 | AH80: 0 | AI80: 0 | AJ80: 0 | AK80: 0 | AL80: 0 | CG80: 0
A81: 80 | G81: (ג) | H81: דרוג נמוך מ- BBB- או לא מדורג | J81: 0 | K81: 0 | L81: 0 | M81: 0 | N81: 0 | P81: 0 | S81: 0 | T81: 0 | X81: 0 | Y81: 0 | Z81: 0 | AC81: 0 | AD81: 0 | AE81: 0 | AF81: 0 | AG81: 0 | AH81: 0 | AI81: 0 | AJ81: 0 | AK81: 0 | AL81: 0 | CG81: 0
A82: 81 | F82: (2) | G82: לא סחיר - חברות ישראליות | J82: 0 | K82: 0 | L82: 0 | M82: 0 | N82: 0 | O82: 0 | P82: 0 | Q82: 0 | R82: 0 | S82: 0 | T82: 0 | U82: 0 | V82: 0 | W82: 0 | X82: 0 | Y82: 0 | Z82: 0 | AA82: 0 | AB82: 0 | AC82: 0 | AD82: 0 | AE82: 0 | AF82: 0 | AG82: 0 | AH82: 0 | AI82: 0 | AJ82: 0 | AK82: 0 | AL82: 0 | AM82: 0 | AN82: 0 | AO82: 0 | AP82: 0 | AQ82: 0 | AR82: 0 | AS82: 0 | AT82: 0 | AU82: 0 | AV82: 0 | AW82: 0 | AX82: 0 | AY82: 0 | AZ82: 0 | BA82: 0 | BB82: 0 | BC82: 0 | BD82: 0 | BE82: 0 | BF82: 0 | BG82: 0 | BH82: 0 | BI82: 0 | BJ82: 0 | BK82: 0 | BL82: 0 | BM82: 0 | BN82: 0 | BO82: 0 | BP82: 0 | BQ82: 0 | BR82: 0 | BS82: 0 | BT82: 0 | BU82: 0 | BV82: 0 | BW82: 0 | BX82: 0 | BY82: 0 | BZ82: 0 | CA82: 0 | CB82: 0 | CC82: 0 | CD82: 0 | CE82: 0 | CF82: 0 | CG82: 0
A83: 82 | G83: (א) | H83: =$H$79 -> דרוג A- ומעלה | J83: 0 | K83: 0 | L83: 0 | M83: 0 | N83: 0 | P83: 0 | S83: 0 | T83: 0 | X83: 0 | Y83: 0 | Z83: 0 | AC83: 0 | AD83: 0 | AE83: 0 | AF83: 0 | AG83: 0 | AH83: 0 | AI83: 0 | AJ83: 0 | AK83: 0 | AL83: 0 | CG83: 0
A84: 83 | G84: (ב) | H84: =$H$80 -> דרוג BBB- ועד BBB+ | J84: 0 | K84: 0 | L84: 0 | M84: 0 | N84: 0 | P84: 0 | S84: 0 | T84: 0 | X84: 0 | Y84: 0 | Z84: 0 | AC84: 0 | AD84: 0 | AE84: 0 | AF84: 0 | AG84: 0 | AH84: 0 | AI84: 0 | AJ84: 0 | AK84: 0 | AL84: 0 | CG84: 0
A85: 84 | G85: (ג) | H85: =$H$69 -> בדרוג נמוך מ- BBB- או לא מדורג עם בטוחה מספקת | J85: 0 | K85: 0 | L85: 0 | M85: 0 | N85: 0 | P85: 0 | S85: 0 | T85: 0 | X85: 0 | Y85: 0 | Z85: 0 | AC85: 0 | AD85: 0 | AE85: 0 | AF85: 0 | AG85: 0 | AH85: 0 | AI85: 0 | AJ85: 0 | AK85: 0 | AL85: 0 | CG85: 0
A86: 85 | G86: (ד) | H86: =H81 -> דרוג נמוך מ- BBB- או לא מדורג | J86: 0 | K86: 0 | L86: 0 | M86: 0 | N86: 0 | P86: 0 | S86: 0 | T86: 0 | X86: 0 | Y86: 0 | Z86: 0 | AC86: 0 | AD86: 0 | AE86: 0 | AF86: 0 | AG86: 0 | AH86: 0 | AI86: 0 | AJ86: 0 | AK86: 0 | AL86: 0 | CG86: 0
A87: 86 | F87: (3) | G87: סחיר - חברות זרות | J87: 0 | K87: 0 | L87: 0 | M87: 0 | N87: 0 | O87: 0 | P87: 0 | Q87: 0 | R87: 0 | S87: 0 | T87: 0 | U87: 0 | V87: 0 | W87: 0 | X87: 0 | Y87: 0 | Z87: 0 | AA87: 0 | AB87: 0 | AC87: 0 | AD87: 0 | AE87: 0 | AF87: 0 | AG87: 0 | AH87: 0 | AI87: 0 | AJ87: 0 | AK87: 0 | AL87: 0 | AM87: 0 | AN87: 0 | AO87: 0 | AP87: 0 | AQ87: 0 | AR87: 0 | AS87: 0 | AT87: 0 | AU87: 0 | AV87: 0 | AW87: 0 | AX87: 0 | AY87: 0 | AZ87: 0 | BA87: 0 | BB87: 0 | BC87: 0 | BD87: 0 | BE87: 0 | BF87: 0 | BG87: 0 | BH87: 0 | BI87: 0 | BJ87: 0 | BK87: 0 | BL87: 0 | BM87: 0 | BN87: 0 | BO87: 0 | BP87: 0 | BQ87: 0 | BR87: 0 | BS87: 0 | BT87: 0 | BU87: 0 | BV87: 0 | BW87: 0 | BX87: 0 | BY87: 0 | BZ87: 0 | CA87: 0 | CB87: 0 | CC87: 0 | CD87: 0 | CE87: 0 | CF87: 0 | CG87: 0
A88: 87 | G88: (א) | H88: =$H$79 -> דרוג A- ומעלה | J88: 0 | K88: 0 | L88: 0 | M88: 0 | N88: 0 | P88: 0 | S88: 0 | T88: 0 | X88: 0 | Y88: 0 | Z88: 0 | AC88: 0 | AD88: 0 | AE88: 0 | AF88: 0 | AG88: 0 | AH88: 0 | AI88: 0 | AJ88: 0 | AK88: 0 | AL88: 0 | CG88: 0
A89: 88 | G89: (ב) | H89: =$H$80 -> דרוג BBB- ועד BBB+ | J89: 0 | K89: 0 | L89: 0 | M89: 0 | N89: 0 | P89: 0 | S89: 0 | T89: 0 | X89: 0 | Y89: 0 | Z89: 0 | AC89: 0 | AD89: 0 | AE89: 0 | AF89: 0 | AG89: 0 | AH89: 0 | AI89: 0 | AJ89: 0 | AK89: 0 | AL89: 0 | CG89: 0
A90: 89 | G90: (ג) | H90: =$H$81 -> דרוג נמוך מ- BBB- או לא מדורג | J90: 0 | K90: 0 | L90: 0 | M90: 0 | N90: 0 | P90: 0 | S90: 0 | T90: 0 | X90: 0 | Y90: 0 | Z90: 0 | AC90: 0 | AD90: 0 | AE90: 0 | AF90: 0 | AG90: 0 | AH90: 0 | AI90: 0 | AJ90: 0 | AK90: 0 | AL90: 0 | CG90: 0
A91: 90 | F91: (4) | G91: לא סחיר - חברות זרות | J91: 0 | K91: 0 | L91: 0 | M91: 0 | N91: 0 | O91: 0 | P91: 0 | Q91: 0 | R91: 0 | S91: 0 | T91: 0 | U91: 0 | V91: 0 | W91: 0 | X91: 0 | Y91: 0 | Z91: 0 | AA91: 0 | AB91: 0 | AC91: 0 | AD91: 0 | AE91: 0 | AF91: 0 | AG91: 0 | AH91: 0 | AI91: 0 | AJ91: 0 | AK91: 0 | AL91: 0 | AM91: 0 | AN91: 0 | AO91: 0 | AP91: 0 | AQ91: 0 | AR91: 0 | AS91: 0 | AT91: 0 | AU91: 0 | AV91: 0 | AW91: 0 | AX91: 0 | AY91: 0 | AZ91: 0 | BA91: 0 | BB91: 0 | BC91: 0 | BD91: 0 | BE91: 0 | BF91: 0 | BG91: 0 | BH91: 0 | BI91: 0 | BJ91: 0 | BK91: 0 | BL91: 0 | BM91: 0 | BN91: 0 | BO91: 0 | BP91: 0 | BQ91: 0 | BR91: 0 | BS91: 0 | BT91: 0 | BU91: 0 | BV91: 0 | BW91: 0 | BX91: 0 | BY91: 0 | BZ91: 0 | CA91: 0 | CB91: 0 | CC91: 0 | CD91: 0 | CE91: 0 | CF91: 0 | CG91: 0
A92: 91 | G92: (א) | H92: =$H$79 -> דרוג A- ומעלה | J92: 0 | K92: 0 | L92: 0 | M92: 0 | N92: 0 | P92: 0 | S92: 0 | T92: 0 | X92: 0 | Y92: 0 | Z92: 0 | AC92: 0 | AD92: 0 | AE92: 0 | AF92: 0 | AG92: 0 | AH92: 0 | AI92: 0 | AJ92: 0 | AK92: 0 | AL92: 0 | CG92: 0
A93: 92 | G93: (ב) | H93: =$H$80 -> דרוג BBB- ועד BBB+ | J93: 0 | K93: 0 | L93: 0 | M93: 0 | N93: 0 | P93: 0 | S93: 0 | T93: 0 | X93: 0 | Y93: 0 | Z93: 0 | AC93: 0 | AD93: 0 | AE93: 0 | AF93: 0 | AG93: 0 | AH93: 0 | AI93: 0 | AJ93: 0 | AK93: 0 | AL93: 0 | CG93: 0
A94: 93 | G94: (ג) | H94: =$H$69 -> בדרוג נמוך מ- BBB- או לא מדורג עם בטוחה מספקת | J94: 0 | K94: 0 | L94: 0 | M94: 0 | N94: 0 | P94: 0 | S94: 0 | T94: 0 | X94: 0 | Y94: 0 | Z94: 0 | AC94: 0 | AD94: 0 | AE94: 0 | AF94: 0 | AG94: 0 | AH94: 0 | AI94: 0 | AJ94: 0 | AK94: 0 | AL94: 0 | CG94: 0
A95: 94 | G95: (ד) | H95: =H90 -> דרוג נמוך מ- BBB- או לא מדורג | J95: 0 | K95: 0 | L95: 0 | M95: 0 | N95: 0 | P95: 0 | S95: 0 | T95: 0 | X95: 0 | Y95: 0 | Z95: 0 | AC95: 0 | AD95: 0 | AE95: 0 | AF95: 0 | AG95: 0 | AH95: 0 | AI95: 0 | AJ95: 0 | AK95: 0 | AL95: 0 | CG95: 0
A96: 95 | AC96: 0 | AD96: 0 | AE96: 0 | AF96: 0 | AG96: 0 | AH96: 0 | AI96: 0 | AJ96: 0 | AK96: 0 | AL96: 0 | CG96: 0
A97: 96 | D97: (3 | E97: אג"ח קונצרני: | J97: 8414699.7 | K97: 218.9836277 | L97: 69347.09125 | M97: 2276233.206 | N97: 78562.0091 | O97: 2070739.67 | P97: 282573.8918 | Q97: 1259855.36 | R97: 369712.04 | S97: 4004.847805 | T97: 2178.36147 | U97: 55087.12 | V97: 0 | W97: 74152.62 | X97: 157.9185301 | Y97: 16736.35824 | Z97: 162.8421954 | AA97: 6634.22 | AB97: 0 | AC97: 221633.0717 | AD97: 102892.575 | AE97: 221869.986 | AF97: 337040.3845 | AG97: 186971.4238 | AH97: 4206.368271 | AI97: 13469.45502 | AJ97: 37197.68396 | AK97: 185010.3855 | AL97: 81831.12624 | AM97: 0 | AN97: 0 | AO97: 0 | AP97: 0 | AQ97: 0 | AR97: 0 | AS97: 0 | AT97: 0 | AU97: 0 | AV97: 0 | AW97: 0 | AX97: 0 | AY97: 0 | AZ97: 0 | BA97: 0 | BB97: 0 | BC97: 0 | BD97: 0 | BE97: 0 | BF97: 0 | BG97: 0 | BH97: 0 | BI97: 0 | BJ97: 0 | BK97: 0 | BL97: 0 | BM97: 0 | BN97: 0 | BO97: 0 | BP97: 0 | BQ97: 0 | BR97: 0 | BS97: 0 | BT97: 0 | BU97: 0 | BV97: 0 | BW97: 0 | BX97: 0 | BY97: 0 | BZ97: 0 | CA97: 0 | CB97: 0 | CC97: 0 | CD97: 0 | CE97: 0 | CF97: 0 | CG97: 456220.7
A98: 97 | E98: א) | F98: בישראל | J98: 5820215.06 | K98: 151.2879187 | L98: 47909.41319 | M98: 1572567.72 | N98: 54275.66877 | O98: 1400820.26 | P98: 234341.653 | Q98: 872246.7 | R98: 311075.33 | S98: 3986.62862 | T98: 2178.36147 | U98: 446.38 | V98: 0 | W98: 57344.68 | X98: 157.9185301 | Y98: 13879.64695 | Z98: 162.1013802 | AA98: 65.42 | AB98: 0 | AC98: 138301.7546 | AD98: 63863.87207 | AE98: 161553.7278 | AF98: 248923.3412 | AG98: 128611.2263 | AH98: 2624.825383 | AI98: 8360.287927 | AJ98: 27085.34225 | AK98: 136640.6088 | AL98: 56288.82365 | AM98: 0 | AN98: 0 | AO98: 0 | AP98: 0 | AQ98: 0 | AR98: 0 | AS98: 0 | AT98: 0 | AU98: 0 | AV98: 0 | AW98: 0 | AX98: 0 | AY98: 0 | AZ98: 0 | BA98: 0 | BB98: 0 | BC98: 0 | BD98: 0 | BE98: 0 | BF98: 0 | BG98: 0 | BH98: 0 | BI98: 0 | BJ98: 0 | BK98: 0 | BL98: 0 | BM98: 0 | BN98: 0 | BO98: 0 | BP98: 0 | BQ98: 0 | BR98: 0 | BS98: 0 | BT98: 0 | BU98: 0 | BV98: 0 | BW98: 0 | BX98: 0 | BY98: 0 | BZ98: 0 | CA98: 0 | CB98: 0 | CC98: 0 | CD98: 0 | CE98: 0 | CF98: 0 | CG98: 276352.08
A99: 98 | F99: (1) | G99: סחיר | J99: 5184526.21 | K99: 127.8295553 | L99: 40480.68765 | M99: 1328728.917 | N99: 45859.806 | O99: 1245037.01 | P99: 216282.8164 | Q99: 808843.34 | R99: 296371.82 | S99: 3986.62862 | T99: 2178.36147 | U99: 292.78 | V99: 0 | W99: 55452.78 | X99: 157.9185301 | Y99: 12810.05359 | Z99: 162.1013802 | AA99: 51.98 | AB99: 0 | AC99: 121196.7501 | AD99: 56163.7935 | AE99: 146570.2222 | AF99: 229410.8526 | AG99: 118603.6689 | AH99: 2300.189949 | AI99: 7352.286503 | AJ99: 24573.2778 | AK99: 125929.6874 | AL99: 51908.85113 | AM99: 0 | AN99: 0 | AO99: 0 | AP99: 0 | AQ99: 0 | AR99: 0 | AS99: 0 | AT99: 0 | AU99: 0 | AV99: 0 | AW99: 0 | AX99: 0 | AY99: 0 | AZ99: 0 | BA99: 0 | BB99: 0 | BC99: 0 | BD99: 0 | BE99: 0 | BF99: 0 | BG99: 0 | BH99: 0 | BI99: 0 | BJ99: 0 | BK99: 0 | BL99: 0 | BM99: 0 | BN99: 0 | BO99: 0 | BP99: 0 | BQ99: 0 | BR99: 0 | BS99: 0 | BT99: 0 | BU99: 0 | BV99: 0 | BW99: 0 | BX99: 0 | BY99: 0 | BZ99: 0 | CA99: 0 | CB99: 0 | CC99: 0 | CD99: 0 | CE99: 0 | CF99: 0 | CG99: 243691.8
A100: 99 | G100: (א) | H100: =$H$48 -> דרוג AA- ומעלה | J100: 3790619.68 | K100: 91.92756018 | L100: 29111.34942 | M100: 955544.3354 | N100: 32979.69759 | O100: 929786.23 | P100: 160656.8455 | Q100: 606568.68 | R100: 219628.67 | S100: 986.5169678 | T100: 1225.228093 | U100: 292.78 | V100: 0 | W100: 35106.32 | X100: 88.82190684 | Y100: 9515.424458 | Z100: 40.11303218 | AA100: 51.98 | AB100: 0 | AC100: 87370.61538 | AD100: 41074.38666 | AE100: 96046.51979 | AF100: 164803.9442 | AG100: 83714.54094 | AH100: 1658.204624 | AI100: 5376.96334 | AJ100: 16102.71021 | AK100: 90465.24584 | AL100: 36639.04906 | AM100: 0 | AN100: 0 | AO100: 0 | AP100: 0 | AQ100: 0 | AR100: 0 | AS100: 0 | AT100: 0 | AU100: 0 | AV100: 0 | AW100: 0 | AX100: 0 | AY100: 0 | AZ100: 0 | BA100: 0 | BB100: 0 | BC100: 0 | BD100: 0 | BE100: 0 | BF100: 0 | BG100: 0 | BH100: 0 | BI100: 0 | BJ100: 0 | BK100: 0 | BL100: 0 | BM100: 0 | BN100: 0 | BO100: 0 | BP100: 0 | BQ100: 0 | BR100: 0 | BS100: 0 | BT100: 0 | BU100: 0 | BV100: 0 | BW100: 0 | BX100: 0 | BY100: 0 | BZ100: 0 | CA100: 0 | CB100: 0 | CC100: 0 | CD100: 0 | CE100: 0 | CF100: 0 | CG100: 185692.58
A101: 100 | H101: a | I101: צמוד מדד | J101: 3229229.58 | K101: 78.55563677 | L101: 24876.76804 | M101: 816549.396 | N101: 28182.42037 | O101: 859323.81 | P101: 112602.1323 | Q101: 535846.15 | R101: 151676.69 | S101: 331.7602088 | T101: 0 | W101: 23362.48 | X101: 0 | Y101: 6669.227695 | Z101: 13.48979122 | AC101: 67651.07207 | AD101: 33760.43147 | AE101: 75229.34923 | AF101: 133856.8649 | AG101: 66553.57891 | AH101: 1283.947927 | AI101: 4419.508533 | AJ101: 12612.60077 | AK101: 73477.57513 | AL101: 29128.27109 | CG101: 171743.5
A102: 101 | H102: b | I102: לא צמוד | J102: 508337.65 | K102: 12.08747233 | L102: 3827.825191 | M102: 125643.6665 | N102: 4336.470818 | O102: 56411.74 | P102: 46213.57088 | Q102: 61960.98 | R102: 65471.94 | S102: 649.3179096 | T102: 1225.228093 | W102: 11361.86 | X102: 88.82190684 | Y102: 2737.149116 | Z102: 26.40209043 | AC102: 18613.39683 | AD102: 6761.920869 | AE102: 19587.12436 | AF102: 28758.41502 | AG102: 16072.76111 | AH102: 353.2631715 | AI102: 885.1891307 | AJ102: 3283.885642 | AK102: 15786.25498 | AL102: 7034.508893 | CG102: 11233.87
A103: 102 | H103: c | I103: צמוד מט"ח | J103: 53052.45 | K103: 1.284451075 | L103: 406.756189 | M103: 13351.27296 | N103: 460.8063994 | O103: 14050.68 | P103: 1841.142353 | Q103: 8761.55 | R103: 2480.04 | S103: 5.438849476 | T103: 0 | U103: 292.78 | W103: 381.98 | X103: 0 | Y103: 109.047647 | Z103: 0.2211505237 | AA103: 51.98 | AC103: 1106.146475 | AD103: 552.0343239 | AE103: 1230.046207 | AF103: 2188.664269 | AG103: 1088.200924 | AH103: 20.99352501 | AI103: 72.26567609 | AJ103: 206.2237929 | AK103: 1201.415731 | AL103: 476.2690758 | CG103: 2715.21
A104: 103 | H104: d | I104: אחר | J104: 0 | K104: 0 | L104: 0 | M104: 0 | N104: 0 | P104: 0 | S104: 0 | T104: 0 | X104: 0 | Y104: 0 | Z104: 0 | AC104: 0 | AD104: 0 | AE104: 0 | AF104: 0 | AG104: 0 | AH104: 0 | AI104: 0 | AJ104: 0 | AK104: 0 | AL104: 0 | CG104: 0
A105: 104 | G105: (ב) | H105: =$H$52 -> דרוג BBB- ועד A+ | J105: 1271295.3 | K105: 32.46743805 | L105: 10281.6928 | M105: 337483.9543 | N105: 11647.93546 | O105: 284107.59 | P105: 51874.21105 | Q105: 187709.1 | R105: 72096.65 | S105: 2925.437978 | T105: 953.1333767 | U105: 0 | V105: 0 | W105: 18027.91 | X105: 69.09662329 | Y105: 3072.418949 | Z105: 118.9520217 | AA105: 0 | AB105: 0 | AC105: 32115.37317 | AD105: 14155.971 | AE105: 43574.46846 | AF105: 59669.0949 | AG105: 31924.713 | AH105: 609.5168273 | AI105: 1853.129001 | AJ105: 7305.491541 | AK105: 32753.9451 | AL105: 13972.377 | AM105: 0 | AN105: 0 | AO105: 0 | AP105: 0 | AQ105: 0 | AR105: 0 | AS105: 0 | AT105: 0 | AU105: 0 | AV105: 0 | AW105: 0 | AX105: 0 | AY105: 0 | AZ105: 0 | BA105: 0 | BB105: 0 | BC105: 0 | BD105: 0 | BE105: 0 | BF105: 0 | BG105: 0 | BH105: 0 | BI105: 0 | BJ105: 0 | BK105: 0 | BL105: 0 | BM105: 0 | BN105: 0 | BO105: 0 | BP105: 0 | BQ105: 0 | BR105: 0 | BS105: 0 | BT105: 0 | BU105: 0 | BV105: 0 | BW105: 0 | BX105: 0 | BY105: 0 | BZ105: 0 | CA105: 0 | CB105: 0 | CC105: 0 | CD105: 0 | CE105: 0 | CF105: 0 | CG105: 52960.67
A106: 105 | H106: a | I106: צמוד מדד | J106: 668083.46 | K106: 16.6022093 | L106: 5257.538819 | M106: 172572.2626 | N106: 5956.166367 | O106: 176748.55 | P106: 23028.15272 | Q106: 106758.55 | R106: 30590.69 | S106: 94.49760733 | T106: 0 | W106: 5926.52 | X106: 0 | Y106: 1363.917279 | Z106: 3.842392667 | AC106: 13371.04136 | AD106: 6746.490789 | AE106: 18666.85279 | AF106: 27768.77475 | AG106: 14156.71171 | AH106: 253.7686441 | AI106: 883.1692108 | AJ106: 3129.597215 | AK106: 15243.01525 | AL106: 6195.918286 | CG106: 33350.83
A107: 106 | H107: b | I107: לא צמוד | J107: 508236.92 | K107: 13.55075326 | L107: 4291.212691 | M107: 140853.7928 | N107: 4861.433759 | O107: 82040.87 | P107: 25528.46367 | Q107: 65162.96 | R107: 37037.14 | S107: 2821.138911 | T107: 953.1333767 | W107: 11413.1 | X107: 69.09662329 | Y107: 1512.006331 | Z107: 114.7110892 | AC107: 16751.14054 | AD107: 6414.766175 | AE107: 22691.16536 | AF107: 27956.5306 | AG107: 15807.15709 | AH107: 317.9194582 | AI107: 839.7438249 | AJ107: 3804.294636 | AK107: 15346.0794 | AL107: 6918.262914 | CG107: 14717.25
A108: 107 | H108: c | I108: צמוד מט"ח | J108: 94974.92 | K108: 2.314475494 | L108: 732.9412932 | M108: 24057.89889 | N108: 830.3353394 | O108: 25318.17 | P108: 3317.594661 | Q108: 15787.59 | R108: 4468.82 | S108: 9.801460187 | T108: 0 | W108: 688.29 | X108: 0 | Y108: 196.4953393 | Z108: 0.398539813 | AC108: 1993.191275 | AD108: 994.7140349 | AE108: 2216.45031 | AF108: 3943.789556 | AG108: 1960.844205 | AH108: 37.82872507 | AI108: 130.2159651 | AJ108: 371.5996904 | AK108: 2164.850444 | AL108: 858.1957951 | CG108: 4892.59
A109: 108 | H109: d | I109: אחר | J109: 0 | K109: 0 | L109: 0 | M109: 0 | N109: 0 | P109: 0 | S109: 0 | T109: 0 | X109: 0 | Y109: 0 | Z109: 0 | AC109: 0 | AD109: 0 | AE109: 0 | AF109: 0 | AG109: 0 | AH109: 0 | AI109: 0 | AJ109: 0 | AK109: 0 | AL109: 0 | CG109: 0
A110: 109 | G110: (ג) | H110: =$H$56 -> דרוג נמוך מ- BBB- או לא מדורג | J110: 122611.23 | K110: 3.434557059 | L110: 1087.645429 | M110: 35700.62706 | N110: 1232.172952 | O110: 31143.19 | P110: 3751.759817 | Q110: 14565.56 | R110: 4646.5 | S110: 74.67367364 | T110: 0 | U110: 0 | V110: 0 | W110: 2318.55 | X110: 0 | Y110: 222.2101834 | Z110: 3.036326359 | AA110: 0 | AB110: 0 | AC110: 1710.761502 | AD110: 933.4358375 | AE110: 6949.233945 | AF110: 4937.813506 | AG110: 2964.414931 | AH110: 32.4684978 | AI110: 122.1941625 | AJ110: 1165.076055 | AK110: 2710.496494 | AL110: 1297.425069 | AM110: 0 | AN110: 0 | AO110: 0 | AP110: 0 | AQ110: 0 | AR110: 0 | AS110: 0 | AT110: 0 | AU110: 0 | AV110: 0 | AW110: 0 | AX110: 0 | AY110: 0 | AZ110: 0 | BA110: 0 | BB110: 0 | BC110: 0 | BD110: 0 | BE110: 0 | BF110: 0 | BG110: 0 | BH110: 0 | BI110: 0 | BJ110: 0 | BK110: 0 | BL110: 0 | BM110: 0 | BN110: 0 | BO110: 0 | BP110: 0 | BQ110: 0 | BR110: 0 | BS110: 0 | BT110: 0 | BU110: 0 | BV110: 0 | BW110: 0 | BX110: 0 | BY110: 0 | BZ110: 0 | CA110: 0 | CB110: 0 | CC110: 0 | CD110: 0 | CE110: 0 | CF110: 0 | CG110: 5038.55
A111: 110 | H111: a | I111: צמוד מדד | J111: 78420.32 | K111: 2.183574595 | L111: 691.4879813 | M111: 22697.24478 | N111: 783.3736658 | O111: 19762.77 | P111: 2477.492448 | Q111: 9393.46 | R111: 2974.01 | S111: 29.75031445 | T111: 0 | W111: 1488.04 | X111: 0 | Y111: 146.737552 | Z111: 1.20968555 | AC111: 1094.988247 | AD111: 608.8470827 | AE111: 4437.559528 | AF111: 3279.174401 | AG111: 1927.234184 | AH111: 20.78175329 | AI111: 79.70291731 | AJ111: 743.9804717 | AK111: 1800.025599 | AL111: 843.4858155 | CG111: 3136.78
A112: 111 | H112: b | I112: לא צמוד | J112: 44190.91 | K112: 1.250982464 | L112: 396.1574479 | M112: 13003.38228 | N112: 448.7992858 | O112: 11380.42 | P112: 1274.267369 | Q112: 5172.1 | R112: 1672.49 | S112: 44.92335919 | T112: 0 | W112: 830.51 | X112: 0 | Y112: 75.4726314 | Z112: 1.826640809 | AC112: 615.7732555 | AD112: 324.5887548 | AE112: 2511.674417 | AF112: 1658.639106 | AG112: 1037.180746 | AH112: 11.68674451 | AI112: 42.4912452 | AJ112: 421.0955832 | AK112: 910.4708944 | AL112: 453.9392538 | CG112: 1901.77
A113: 112 | H113: c | I113: צמוד מט"ח | J113: 0 | K113: 0 | L113: 0 | M113: 0 | N113: 0 | P113: 0 | S113: 0 | T113: 0 | X113: 0 | Y113: 0 | Z113: 0 | AC113: 0 | AD113: 0 | AE113: 0 | AF113: 0 | AG113: 0 | AH113: 0 | AI113: 0 | AJ113: 0 | AK113: 0 | AL113: 0 | CG113: 0
A114: 113 | H114: d | I114: אחר | J114: 0 | K114: 0 | L114: 0 | M114: 0 | N114: 0 | P114: 0 | S114: 0 | T114: 0 | X114: 0 | Y114: 0 | Z114: 0 | AC114: 0 | AD114: 0 | AE114: 0 | AF114: 0 | AG114: 0 | AH114: 0 | AI114: 0 | AJ114: 0 | AK114: 0 | AL114: 0 | CG114: 0
A115: 114 | F115: (2) | G115: לא סחיר | J115: 635688.85 | K115: 23.4583634 | L115: 7428.725536 | M115: 243838.8033 | N115: 8415.862766 | O115: 155783.25 | P115: 18058.83664 | Q115: 63403.36 | R115: 14703.51 | S115: 0 | T115: 0 | U115: 153.6 | V115: 0 | W115: 1891.9 | X115: 0 | Y115: 1069.593364 | Z115: 0 | AA115: 13.44 | AB115: 0 | AC115: 17105.00457 | AD115: 7700.078577 | AE115: 14983.50555 | AF115: 19512.48866 | AG115: 10007.55747 | AH115: 324.6354342 | AI115: 1008.001423 | AJ115: 2512.064448 | AK115: 10710.92134 | AL115: 4379.972525 | AM115: 0 | AN115: 0 | AO115: 0 | AP115: 0 | AQ115: 0 | AR115: 0 | AS115: 0 | AT115: 0 | AU115: 0 | AV115: 0 | AW115: 0 | AX115: 0 | AY115: 0 | AZ115: 0 | BA115: 0 | BB115: 0 | BC115: 0 | BD115: 0 | BE115: 0 | BF115: 0 | BG115: 0 | BH115: 0 | BI115: 0 | BJ115: 0 | BK115: 0 | BL115: 0 | BM115: 0 | BN115: 0 | BO115: 0 | BP115: 0 | BQ115: 0 | BR115: 0 | BS115: 0 | BT115: 0 | BU115: 0 | BV115: 0 | BW115: 0 | BX115: 0 | BY115: 0 | BZ115: 0 | CA115: 0 | CB115: 0 | CC115: 0 | CD115: 0 | CE115: 0 | CF115: 0 | CG115: 32660.28
A116: 115 | G116: (א) | H116: =$H$48 -> דרוג AA- ומעלה | J116: 594614.79 | K116: 22.43903362 | L116: 7105.927178 | M116: 233243.3432 | N116: 8050.170606 | O116: 145596.78 | P116: 17356.14579 | Q116: 58910.92 | R116: 13361.94 | S116: 0 | T116: 0 | U116: 153.6 | V116: 0 | W116: 1858.03 | X116: 0 | Y116: 1027.974212 | Z116: 0 | AA116: 13.44 | AB116: 0 | AC116: 15152.90344 | AD116: 6854.474822 | AE116: 13154.1986 | AF116: 17251.01912 | AG116: 8909.263806 | AH116: 287.586558 | AI116: 897.305178 | AJ116: 2205.371402 | AK116: 9469.540877 | AL116: 3899.286194 | AM116: 0 | AN116: 0 | AO116: 0 | AP116: 0 | AQ116: 0 | AR116: 0 | AS116: 0 | AT116: 0 | AU116: 0 | AV116: 0 | AW116: 0 | AX116: 0 | AY116: 0 | AZ116: 0 | BA116: 0 | BB116: 0 | BC116: 0 | BD116: 0 | BE116: 0 | BF116: 0 | BG116: 0 | BH116: 0 | BI116: 0 | BJ116: 0 | BK116: 0 | BL116: 0 | BM116: 0 | BN116: 0 | BO116: 0 | BP116: 0 | BQ116: 0 | BR116: 0 | BS116: 0 | BT116: 0 | BU116: 0 | BV116: 0 | BW116: 0 | BX116: 0 | BY116: 0 | BZ116: 0 | CA116: 0 | CB116: 0 | CC116: 0 | CD116: 0 | CE116: 0 | CF116: 0 | CG116: 29833.13
A117: 116 | H117: a | I117: צמוד מדד | J117: 506382.87 | K117: 20.53179162 | L117: 6501.94739 | M117: 213418.4475 | N117: 7365.933319 | O117: 123068.99 | P117: 16543.09157 | Q117: 48590.91 | R117: 10140.66 | S117: 0 | T117: 0 | W117: 1227.36 | X117: 0 | Y117: 979.8184298 | Z117: 0 | AC117: 10275.4819 | AD117: 4847.609435 | AE117: 8796.756891 | AF117: 12572.40449 | AG117: 6145.736914 | AH117: 195.0181021 | AI117: 634.5905646 | AJ117: 1474.823109 | AK117: 6901.325506 | AL117: 2689.783086 | CG117: 23991.65
A118: 117 | H118: b | I118: לא צמוד | J118: 78320.16 | K118: 1.614017483 | L118: 511.1223102 | M118: 16776.96287 | N118: 579.0408056 | O118: 19427.18 | P118: 595.9244361 | Q118: 9436.77 | R118: 3027.66 | S118: 0 | T118: 0 | W118: 596.24 | X118: 0 | Y118: 35.29556388 | Z118: 0 | AC118: 4535.981722 | AD118: 1893.257554 | AE118: 4139.081036 | AF118: 4431.785609 | AG118: 2560.566051 | AH118: 86.08827844 | AI118: 247.8424461 | AJ118: 693.938964 | AK118: 2432.724391 | AL118: 1120.673949 | CG118: 5190.41
A119: 118 | H119: c | I119: צמוד מט"ח | J119: 9911.76 | K119: 0.2932245181 | L119: 92.85747809 | M119: 3047.932815 | N119: 105.196482 | O119: 3100.61 | P119: 217.1297821 | Q119: 883.24 | R119: 193.62 | S119: 0 | T119: 0 | U119: 153.6 | W119: 34.43 | X119: 0 | Y119: 12.86021789 | Z119: 0 | AA119: 13.44 | AC119: 341.4398225 | AD119: 113.6078327 | AE119: 218.3606713 | AF119: 246.8290197 | AG119: 202.9608415 | AH119: 6.48017746 | AI119: 14.87216733 | AJ119: 36.60932867 | AK119: 135.4909803 | AL119: 88.82915853 | CG119: 651.07
A120: 119 | H120: d | I120: אחר | J120: 0 | K120: 0 | L120: 0 | M120: 0 | N120: 0 | P120: 0 | S120: 0 | T120: 0 | X120: 0 | Y120: 0 | Z120: 0 | AC120: 0 | AD120: 0 | AE120: 0 | AF120: 0 | AG120: 0 | AH120: 0 | AI120: 0 | AJ120: 0 | AK120: 0 | AL120: 0 | CG120: 0
A121: 120 | G121: (ב) | H121: =$H$52 -> דרוג BBB- ועד A+ | J121: 28615.1 | K121: 0.569036832 | L121: 180.2009105 | M121: 5914.873847 | N121: 204.146206 | O121: 7287.49 | P121: 266.0427523 | Q121: 3157.27 | R121: 1049.87 | S121: 0 | T121: 0 | U121: 0 | V121: 0 | W121: 0.15 | X121: 0 | Y121: 15.75724771 | Z121: 0 | AA121: 0 | AB121: 0 | AC121: 1642.536346 | AD121: 699.5618052 | AE121: 1564.288678 | AF121: 1882.703972 | AG121: 913.1464159 | AH121: 31.17365434 | AI121: 91.57819476 | AJ121: 262.261322 | AK121: 1033.466028 | AL121: 399.6535841 | AM121: 0 | AN121: 0 | AO121: 0 | AP121: 0 | AQ121: 0 | AR121: 0 | AS121: 0 | AT121: 0 | AU121: 0 | AV121: 0 | AW121: 0 | AX121: 0 | AY121: 0 | AZ121: 0 | BA121: 0 | BB121: 0 | BC121: 0 | BD121: 0 | BE121: 0 | BF121: 0 | BG121: 0 | BH121: 0 | BI121: 0 | BJ121: 0 | BK121: 0 | BL121: 0 | BM121: 0 | BN121: 0 | BO121: 0 | BP121: 0 | BQ121: 0 | BR121: 0 | BS121: 0 | BT121: 0 | BU121: 0 | BV121: 0 | BW121: 0 | BX121: 0 | BY121: 0 | BZ121: 0 | CA121: 0 | CB121: 0 | CC121: 0 | CD121: 0 | CE121: 0 | CF121: 0 | CG121: 2018.36
A122: 121 | H122: a | I122: צמוד מדד | J122: 0 | K122: 0 | L122: 0 | M122: 0 | N122: 0 | P122: 0 | S122: 0 | T122: 0 | X122: 0 | Y122: 0 | Z122: 0 | AC122: 0 | AD122: 0 | AE122: 0 | AF122: 0 | AG122: 0 | AH122: 0 | AI122: 0 | AJ122: 0 | AK122: 0 | AL122: 0 | CG122: 0
A123: 122 | H123: b | I123: לא צמוד | J123: 28615.1 | K123: 0.569036832 | L123: 180.2009105 | M123: 5914.873847 | N123: 204.146206 | O123: 7287.49 | P123: 266.0427523 | Q123: 3157.27 | R123: 1049.87 | S123: 0 | T123: 0 | W123: 0.15 | X123: 0 | Y123: 15.75724771 | Z123: 0 | AC123: 1642.536346 | AD123: 699.5618052 | AE123: 1564.288678 | AF123: 1882.703972 | AG123: 913.1464159 | AH123: 31.17365434 | AI123: 91.57819476 | AJ123: 262.261322 | AK123: 1033.466028 | AL123: 399.6535841 | CG123: 2018.36
A124: 123 | H124: c | I124: צמוד מט"ח | J124: 0 | K124: 0 | L124: 0 | M124: 0 | N124: 0 | P124: 0 | S124: 0 | T124: 0 | X124: 0 | Y124: 0 | Z124: 0 | AC124: 0 | AD124: 0 | AE124: 0 | AF124: 0 | AG124: 0 | AH124: 0 | AI124: 0 | AJ124: 0 | AK124: 0 | AL124: 0 | CG124: 0
A125: 124 | H125: d | I125: אחר | J125: 0 | K125: 0 | L125: 0 | M125: 0 | N125: 0 | P125: 0 | S125: 0 | T125: 0 | X125: 0 | Y125: 0 | Z125: 0 | AC125: 0 | AD125: 0 | AE125: 0 | AF125: 0 | AG125: 0 | AH125: 0 | AI125: 0 | AJ125: 0 | AK125: 0 | AL125: 0 | CG125: 0
A126: 125 | G126: (ג) | H126: =$H$69 -> בדרוג נמוך מ- BBB- או לא מדורג עם בטוחה מספקת | J126: 0 | K126: 0 | L126: 0 | M126: 0 | N126: 0 | O126: 0 | P126: 0 | Q126: 0 | R126: 0 | S126: 0 | T126: 0 | U126: 0 | V126: 0 | W126: 0 | X126: 0 | Y126: 0 | Z126: 0 | AA126: 0 | AB126: 0 | AC126: 0 | AD126: 0 | AE126: 0 | AF126: 0 | AG126: 0 | AH126: 0 | AI126: 0 | AJ126: 0 | AK126: 0 | AL126: 0 | AM126: 0 | AN126: 0 | AO126: 0 | AP126: 0 | AQ126: 0 | AR126: 0 | AS126: 0 | AT126: 0 | AU126: 0 | AV126: 0 | AW126: 0 | AX126: 0 | AY126: 0 | AZ126: 0 | BA126: 0 | BB126: 0 | BC126: 0 | BD126: 0 | BE126: 0 | BF126: 0 | BG126: 0 | BH126: 0 | BI126: 0 | BJ126: 0 | BK126: 0 | BL126: 0 | BM126: 0 | BN126: 0 | BO126: 0 | BP126: 0 | BQ126: 0 | BR126: 0 | BS126: 0 | BT126: 0 | BU126: 0 | BV126: 0 | BW126: 0 | BX126: 0 | BY126: 0 | BZ126: 0 | CA126: 0 | CB126: 0 | CC126: 0 | CD126: 0 | CE126: 0 | CF126: 0 | CG126: 0
A127: 126 | H127: a | I127: צמוד מדד | J127: 0 | K127: 0 | L127: 0 | M127: 0 | N127: 0 | P127: 0 | S127: 0 | T127: 0 | X127: 0 | Y127: 0 | Z127: 0 | AC127: 0 | AD127: 0 | AE127: 0 | AF127: 0 | AG127: 0 | AH127: 0 | AI127: 0 | AJ127: 0 | AK127: 0 | AL127: 0 | CG127: 0
A128: 127 | H128: b | I128: לא צמוד | J128: 0 | K128: 0 | L128: 0 | M128: 0 | N128: 0 | P128: 0 | S128: 0 | T128: 0 | X128: 0 | Y128: 0 | Z128: 0 | AC128: 0 | AD128: 0 | AE128: 0 | AF128: 0 | AG128: 0 | AH128: 0 | AI128: 0 | AJ128: 0 | AK128: 0 | AL128: 0 | CG128: 0
A129: 128 | H129: c | I129: צמוד מט"ח | J129: 0 | K129: 0 | L129: 0 | M129: 0 | N129: 0 | P129: 0 | S129: 0 | T129: 0 | X129: 0 | Y129: 0 | Z129: 0 | AC129: 0 | AD129: 0 | AE129: 0 | AF129: 0 | AG129: 0 | AH129: 0 | AI129: 0 | AJ129: 0 | AK129: 0 | AL129: 0 | CG129: 0
A130: 129 | H130: d | I130: אחר | J130: 0 | K130: 0 | L130: 0 | M130: 0 | N130: 0 | P130: 0 | S130: 0 | T130: 0 | X130: 0 | Y130: 0 | Z130: 0 | AC130: 0 | AD130: 0 | AE130: 0 | AF130: 0 | AG130: 0 | AH130: 0 | AI130: 0 | AJ130: 0 | AK130: 0 | AL130: 0 | CG130: 0
A131: 130 | G131: (ד) | H131: =$H$56 -> דרוג נמוך מ- BBB- או לא מדורג | J131: 12458.96 | K131: 0.4502929517 | L131: 142.5974477 | M131: 4680.586306 | N131: 161.5459536 | O131: 2898.98 | P131: 436.6480957 | Q131: 1335.17 | R131: 291.7 | S131: 0 | T131: 0 | U131: 0 | V131: 0 | W131: 33.72 | X131: 0 | Y131: 25.86190433 | Z131: 0 | AA131: 0 | AB131: 0 | AC131: 309.5647782 | AD131: 146.0419493 | AE131: 265.0182757 | AF131: 378.765561 | AG131: 185.1472524 | AH131: 5.875221827 | AI131: 19.11805072 | AJ131: 44.43172435 | AK131: 207.914439 | AL131: 81.03274758 | AM131: 0 | AN131: 0 | AO131: 0 | AP131: 0 | AQ131: 0 | AR131: 0 | AS131: 0 | AT131: 0 | AU131: 0 | AV131: 0 | AW131: 0 | AX131: 0 | AY131: 0 | AZ131: 0 | BA131: 0 | BB131: 0 | BC131: 0 | BD131: 0 | BE131: 0 | BF131: 0 | BG131: 0 | BH131: 0 | BI131: 0 | BJ131: 0 | BK131: 0 | BL131: 0 | BM131: 0 | BN131: 0 | BO131: 0 | BP131: 0 | BQ131: 0 | BR131: 0 | BS131: 0 | BT131: 0 | BU131: 0 | BV131: 0 | BW131: 0 | BX131: 0 | BY131: 0 | BZ131: 0 | CA131: 0 | CB131: 0 | CC131: 0 | CD131: 0 | CE131: 0 | CF131: 0 | CG131: 808.79
A132: 131 | H132: a | I132: צמוד מדד | J132: 12458.96 | K132: 0.4502929517 | L132: 142.5974477 | M132: 4680.586306 | N132: 161.5459536 | O132: 2898.98 | P132: 436.6480957 | Q132: 1335.17 | R132: 291.7 | S132: 0 | T132: 0 | W132: 33.72 | X132: 0 | Y132: 25.86190433 | Z132: 0 | AC132: 309.5647782 | AD132: 146.0419493 | AE132: 265.0182757 | AF132: 378.765561 | AG132: 185.1472524 | AH132: 5.875221827 | AI132: 19.11805072 | AJ132: 44.43172435 | AK132: 207.914439 | AL132: 81.03274758 | CG132: 808.79
A133: 132 | H133: b | I133: לא צמוד | J133: 0 | K133: 0 | L133: 0 | M133: 0 | N133: 0 | P133: 0 | S133: 0 | T133: 0 | X133: 0 | Y133: 0 | Z133: 0 | AC133: 0 | AD133: 0 | AE133: 0 | AF133: 0 | AG133: 0 | AH133: 0 | AI133: 0 | AJ133: 0 | AK133: 0 | AL133: 0 | CG133: 0
A134: 133 | H134: c | I134: צמוד מט"ח | J134: 0 | K134: 0 | L134: 0 | M134: 0 | N134: 0 | P134: 0 | S134: 0 | T134: 0 | X134: 0 | Y134: 0 | Z134: 0 | AC134: 0 | AD134: 0 | AE134: 0 | AF134: 0 | AG134: 0 | AH134: 0 | AI134: 0 | AJ134: 0 | AK134: 0 | AL134: 0 | CG134: 0
A135: 134 | H135: d | I135: אחר | J135: 0 | K135: 0 | L135: 0 | M135: 0 | N135: 0 | P135: 0 | S135: 0 | T135: 0 | X135: 0 | Y135: 0 | Z135: 0 | AC135: 0 | AD135: 0 | AE135: 0 | AF135: 0 | AG135: 0 | AH135: 0 | AI135: 0 | AJ135: 0 | AK135: 0 | AL135: 0 | CG135: 0
A136: 135 | E136: ב) | F136: בחו"ל | J136: 2594484.64 | K136: 67.69570903 | L136: 21437.67806 | M136: 703665.4859 | N136: 24286.34033 | O136: 669919.41 | P136: 48232.23871 | Q136: 387608.66 | R136: 58636.71 | S136: 18.21918482 | T136: 0 | U136: 54640.74 | V136: 0 | W136: 16807.94 | X136: 0 | Y136: 2856.711287 | Z136: 0.7408151818 | AA136: 6568.8 | AB136: 0 | AC136: 83331.31711 | AD136: 39028.70291 | AE136: 60316.25829 | AF136: 88117.04327 | AG136: 58360.19741 | AH136: 1581.542888 | AI136: 5109.167094 | AJ136: 10112.34171 | AK136: 48369.77673 | AL136: 25542.30259 | AM136: 0 | AN136: 0 | AO136: 0 | AP136: 0 | AQ136: 0 | AR136: 0 | AS136: 0 | AT136: 0 | AU136: 0 | AV136: 0 | AW136: 0 | AX136: 0 | AY136: 0 | AZ136: 0 | BA136: 0 | BB136: 0 | BC136: 0 | BD136: 0 | BE136: 0 | BF136: 0 | BG136: 0 | BH136: 0 | BI136: 0 | BJ136: 0 | BK136: 0 | BL136: 0 | BM136: 0 | BN136: 0 | BO136: 0 | BP136: 0 | BQ136: 0 | BR136: 0 | BS136: 0 | BT136: 0 | BU136: 0 | BV136: 0 | BW136: 0 | BX136: 0 | BY136: 0 | BZ136: 0 | CA136: 0 | CB136: 0 | CC136: 0 | CD136: 0 | CE136: 0 | CF136: 0 | CG136: 179868.62
A137: 136 | F137: (1) | G137: סחיר - חברות ישראליות | J137: 139883.18 | K137: 3.906981765 | L137: 1237.251496 | M137: 40611.26269 | N137: 1401.658837 | O137: 38018.25 | P137: 5696.118827 | Q137: 19912.74 | R137: 5615.98 | S137: 10.71434128 | T137: 0 | U137: 286.55 | V137: 0 | W137: 970.8 | X137: 0 | Y137: 337.3711728 | Z137: 0.4356587171 | AA137: 94.73 | AB137: 0 | AC137: 2292.834357 | AD137: 1133.20453 | AE137: 2599.782609 | AF137: 4414.541408 | AG137: 2157.850953 | AH137: 43.51564328 | AI137: 148.3454704 | AJ137: 435.8673906 | AK137: 2423.258592 | AL137: 944.4190467 | AM137: 0 | AN137: 0 | AO137: 0 | AP137: 0 | AQ137: 0 | AR137: 0 | AS137: 0 | AT137: 0 | AU137: 0 | AV137: 0 | AW137: 0 | AX137: 0 | AY137: 0 | AZ137: 0 | BA137: 0 | BB137: 0 | BC137: 0 | BD137: 0 | BE137: 0 | BF137: 0 | BG137: 0 | BH137: 0 | BI137: 0 | BJ137: 0 | BK137: 0 | BL137: 0 | BM137: 0 | BN137: 0 | BO137: 0 | BP137: 0 | BQ137: 0 | BR137: 0 | BS137: 0 | BT137: 0 | BU137: 0 | BV137: 0 | BW137: 0 | BX137: 0 | BY137: 0 | BZ137: 0 | CA137: 0 | CB137: 0 | CC137: 0 | CD137: 0 | CE137: 0 | CF137: 0 | CG137: 9091.79
A138: 137 | G138: (א) | H138: =$H$79 -> דרוג A- ומעלה | J138: 48778.62 | K138: 1.188702468 | L138: 376.4348019 | M138: 12356.01062 | N138: 426.455873 | O138: 13003.28 | P138: 1703.900923 | Q138: 8108.42 | R138: 2295.16 | S138: 5.035259939 | T138: 0 | W138: 353.5 | X138: 0 | Y138: 100.9190767 | Z138: 0.2047400608 | AC138: 1023.691388 | AD138: 510.8815489 | AE138: 1138.358191 | AF138: 2025.512559 | AG138: 1007.076407 | AH138: 19.42861207 | AI138: 66.8784511 | AJ138: 190.8518091 | AK138: 1111.857441 | AL138: 440.7635933 | CG138: 2512.81
A139: 138 | G139: (ב) | H139: =$H$80 -> דרוג BBB- ועד BBB+ | J139: 36095.94 | K139: 1.377755451 | L139: 436.3035445 | M139: 14321.12866 | N139: 494.28004 | O139: 10350.91 | P139: 2070.696275 | Q139: 2660.29 | R139: 732.52 | S139: 0 | T139: 0 | U139: 286.55 | W139: 218.65 | X139: 0 | Y139: 122.643725 | Z139: 0 | AA139: 94.73 | AC139: 114.7030537 | AD139: 46.19297306 | AE139: 177.6808585 | AF139: 104.8209867 | AG139: 15.07303689 | AH139: 2.176946257 | AI139: 6.047026941 | AJ139: 29.78914154 | AK139: 57.53901329 | AL139: 6.596963108 | CG139: 3745.24
A140: =A139+1 -> 139 | G140: (ג) | H140: =$H$81 -> דרוג נמוך מ- BBB- או לא מדורג | J140: 55008.62 | K140: 1.340523846 | L140: 424.5131494 | M140: 13934.1234 | N140: 480.9229242 | O140: 14664.06 | P140: 1921.521629 | Q140: 9144.03 | R140: 2588.3 | S140: 5.679081344 | T140: 0 | W140: 398.65 | X140: 0 | Y140: 113.8083711 | Z140: 0.2309186563 | AC140: 1154.439915 | AD140: 576.1300076 | AE140: 1283.74356 | AF140: 2284.207862 | AG140: 1135.70151 | AH140: 21.91008495 | AI140: 75.41999241 | AJ140: 215.22644 | AK140: 1253.862138 | AL140: 497.0584903 | CG140: 2833.74
A141: 140 | F141: (2) | G141: לא סחיר - חברות ישראליות | J141: 0 | K141: 0 | L141: 0 | M141: 0 | N141: 0 | O141: 0 | P141: 0 | Q141: 0 | R141: 0 | S141: 0 | T141: 0 | U141: 0 | V141: 0 | W141: 0 | X141: 0 | Y141: 0 | Z141: 0 | AA141: 0 | AB141: 0 | AC141: 0 | AD141: 0 | AE141: 0 | AF141: 0 | AG141: 0 | AH141: 0 | AI141: 0 | AJ141: 0 | AK141: 0 | AL141: 0 | AM141: 0 | AN141: 0 | AO141: 0 | AP141: 0 | AQ141: 0 | AR141: 0 | AS141: 0 | AT141: 0 | AU141: 0 | AV141: 0 | AW141: 0 | AX141: 0 | AY141: 0 | AZ141: 0 | BA141: 0 | BB141: 0 | BC141: 0 | BD141: 0 | BE141: 0 | BF141: 0 | BG141: 0 | BH141: 0 | BI141: 0 | BJ141: 0 | BK141: 0 | BL141: 0 | BM141: 0 | BN141: 0 | BO141: 0 | BP141: 0 | BQ141: 0 | BR141: 0 | BS141: 0 | BT141: 0 | BU141: 0 | BV141: 0 | BW141: 0 | BX141: 0 | BY141: 0 | BZ141: 0 | CA141: 0 | CB141: 0 | CC141: 0 | CD141: 0 | CE141: 0 | CF141: 0 | CG141: 0
A142: 141 | G142: (א) | H142: =$H$79 -> דרוג A- ומעלה | J142: 0 | K142: 0 | L142: 0 | M142: 0 | N142: 0 | P142: 0 | S142: 0 | T142: 0 | X142: 0 | Y142: 0 | Z142: 0 | AC142: 0 | AD142: 0 | AE142: 0 | AF142: 0 | AG142: 0 | AH142: 0 | AI142: 0 | AJ142: 0 | AK142: 0 | AL142: 0 | CG142: 0
A143: 142 | G143: (ב) | H143: =$H$80 -> דרוג BBB- ועד BBB+ | J143: 0 | K143: 0 | L143: 0 | M143: 0 | N143: 0 | P143: 0 | S143: 0 | T143: 0 | X143: 0 | Y143: 0 | Z143: 0 | AC143: 0 | AD143: 0 | AE143: 0 | AF143: 0 | AG143: 0 | AH143: 0 | AI143: 0 | AJ143: 0 | AK143: 0 | AL143: 0 | CG143: 0
A144: 143 | G144: (ג) | H144: =$H$69 -> בדרוג נמוך מ- BBB- או לא מדורג עם בטוחה מספקת | J144: 0 | K144: 0 | L144: 0 | M144: 0 | N144: 0 | P144: 0 | S144: 0 | T144: 0 | X144: 0 | Y144: 0 | Z144: 0 | AC144: 0 | AD144: 0 | AE144: 0 | AF144: 0 | AG144: 0 | AH144: 0 | AI144: 0 | AJ144: 0 | AK144: 0 | AL144: 0 | CG144: 0
A145: 144 | G145: (ד) | H145: =H140 -> דרוג נמוך מ- BBB- או לא מדורג | J145: 0 | K145: 0 | L145: 0 | M145: 0 | N145: 0 | P145: 0 | S145: 0 | T145: 0 | X145: 0 | Y145: 0 | Z145: 0 | AC145: 0 | AD145: 0 | AE145: 0 | AF145: 0 | AG145: 0 | AH145: 0 | AI145: 0 | AJ145: 0 | AK145: 0 | AL145: 0 | CG145: 0
A146: 145 | F146: (3) | G146: סחיר - חברות זרות | J146: 2359296.42 | K146: 60.96926714 | L146: 19307.56822 | M146: 633747.2434 | N146: 21873.17915 | O146: 602087.71 | P146: 40448.35458 | Q146: 359203.25 | R146: 51159.05 | S146: 7.504843535 | T146: 0 | U146: 52877.3 | V146: 0 | W146: 15506.06 | X146: 0 | Y146: 2395.68542 | Z146: 0.3051564646 | AA146: 6344.8 | AB146: 0 | AC146: 77755.4317 | AD146: 36803.09292 | AE146: 55616.8578 | AF146: 81329.1613 | AG146: 54250.809 | AH146: 1475.718304 | AI146: 4817.817076 | AJ146: 9324.462204 | AK146: 44643.7287 | AL146: 23743.761 | AM146: 0 | AN146: 0 | AO146: 0 | AP146: 0 | AQ146: 0 | AR146: 0 | AS146: 0 | AT146: 0 | AU146: 0 | AV146: 0 | AW146: 0 | AX146: 0 | AY146: 0 | AZ146: 0 | BA146: 0 | BB146: 0 | BC146: 0 | BD146: 0 | BE146: 0 | BF146: 0 | BG146: 0 | BH146: 0 | BI146: 0 | BJ146: 0 | BK146: 0 | BL146: 0 | BM146: 0 | BN146: 0 | BO146: 0 | BP146: 0 | BQ146: 0 | BR146: 0 | BS146: 0 | BT146: 0 | BU146: 0 | BV146: 0 | BW146: 0 | BX146: 0 | BY146: 0 | BZ146: 0 | CA146: 0 | CB146: 0 | CC146: 0 | CD146: 0 | CE146: 0 | CF146: 0 | CG146: 164516.6
A147: 146 | G147: (א) | H147: =$H$79 -> דרוג A- ומעלה | J147: 274449.05 | K147: 7.091163305 | L147: 2245.608742 | M147: 73709.35239 | N147: 2544.007704 | O147: 70036.56 | P147: 4706.143346 | Q147: 41790.34 | R147: 5951.63 | S147: 0 | T147: 0 | U147: 6152.06 | W147: 1804.12 | X147: 0 | Y147: 278.7366536 | Z147: 0 | AA147: 738.21 | AC147: 9046.702863 | AD147: 4281.993104 | AE147: 6470.882167 | AF147: 9462.515083 | AG147: 6312.048087 | AH147: 171.697137 | AI147: 560.5468959 | AJ147: 1084.877833 | AK147: 5194.224917 | AL147: 2762.571913 | CG147: 19137.13
A148: 147 | G148: (ב) | H148: =$H$80 -> דרוג BBB- ועד BBB+ | J148: 1647562.85 | K148: 42.56942321 | L148: 13480.75975 | M148: 442489.4029 | N148: 15272.09796 | O148: 420440.99 | P148: 28251.72939 | Q148: 250874.31 | R148: 35728.59 | S148: 0 | T148: 0 | U148: 36931.82 | W148: 10830.43 | X148: 0 | Y148: 1673.300605 | Z148: 0 | AA148: 4431.62 | AC148: 54308.8635 | AD148: 25705.48758 | AE148: 38845.76993 | AF148: 56805.05318 | AG148: 37892.25838 | AH148: 1030.7265 | AI148: 3365.052423 | AJ148: 6512.700067 | AK148: 31181.79682 | AL148: 16584.17162 | CG148: 114883.35
A149: 148 | G149: (ג) | H149: =$H$81 -> דרוג נמוך מ- BBB- או לא מדורג | J149: 437284.52 | K149: 11.30868063 | L149: 3581.199725 | M149: 117548.4881 | N149: 4057.073488 | O149: 111610.16 | P149: 7490.481839 | Q149: 66538.6 | R149: 9478.83 | S149: 7.504843535 | T149: 0 | U149: 9793.42 | W149: 2871.51 | X149: 0 | Y149: 443.6481611 | Z149: 0.3051564646 | AA149: 1174.97 | AC149: 14399.86533 | AD149: 6815.612242 | AE149: 10300.2057 | AF149: 15061.59304 | AG149: 10046.50253 | AH149: 273.2946675 | AI149: 892.2177578 | AJ149: 1726.884303 | AK149: 8267.706964 | AL149: 4397.017471 | CG149: 30496.12
A150: 149 | F150: (4) | G150: לא סחיר - חברות זרות | J150: 95305.04 | K150: 2.819460128 | L150: 892.8583419 | M150: 29306.97986 | N150: 1011.502342 | O150: 29813.45 | P150: 2087.765306 | Q150: 8492.67 | R150: 1861.68 | S150: 0 | T150: 0 | U150: 1476.89 | V150: 0 | W150: 331.08 | X150: 0 | Y150: 123.6546939 | Z150: 0 | AA150: 129.27 | AB150: 0 | AC150: 3283.05106 | AD150: 1092.405453 | AE150: 2099.617887 | AF150: 2373.340564 | AG150: 1951.537457 | AH150: 62.30894018 | AI150: 143.0045473 | AJ150: 352.012113 | AK150: 1302.789436 | AL150: 854.1225433 | AM150: 0 | AN150: 0 | AO150: 0 | AP150: 0 | AQ150: 0 | AR150: 0 | AS150: 0 | AT150: 0 | AU150: 0 | AV150: 0 | AW150: 0 | AX150: 0 | AY150: 0 | AZ150: 0 | BA150: 0 | BB150: 0 | BC150: 0 | BD150: 0 | BE150: 0 | BF150: 0 | BG150: 0 | BH150: 0 | BI150: 0 | BJ150: 0 | BK150: 0 | BL150: 0 | BM150: 0 | BN150: 0 | BO150: 0 | BP150: 0 | BQ150: 0 | BR150: 0 | BS150: 0 | BT150: 0 | BU150: 0 | BV150: 0 | BW150: 0 | BX150: 0 | BY150: 0 | BZ150: 0 | CA150: 0 | CB150: 0 | CC150: 0 | CD150: 0 | CE150: 0 | CF150: 0 | CG150: 6260.23
A151: 150 | G151: (א) | H151: =$H$79 -> דרוג A- ומעלה | J151: 0 | K151: 0 | L151: 0 | M151: 0 | N151: 0 | P151: 0 | S151: 0 | T151: 0 | X151: 0 | Y151: 0 | Z151: 0 | AC151: 0 | AD151: 0 | AE151: 0 | AF151: 0 | AG151: 0 | AH151: 0 | AI151: 0 | AJ151: 0 | AK151: 0 | AL151: 0 | CG151: 0
A152: 151 | G152: (ב) | H152: =$H$80 -> דרוג BBB- ועד BBB+ | J152: 0 | K152: 0 | L152: 0 | M152: 0 | N152: 0 | P152: 0 | S152: 0 | T152: 0 | X152: 0 | Y152: 0 | Z152: 0 | AC152: 0 | AD152: 0 | AE152: 0 | AF152: 0 | AG152: 0 | AH152: 0 | AI152: 0 | AJ152: 0 | AK152: 0 | AL152: 0 | CG152: 0
A153: 152 | G153: (ג) | H153: =$H$69 -> בדרוג נמוך מ- BBB- או לא מדורג עם בטוחה מספקת | J153: 0 | K153: 0 | L153: 0 | M153: 0 | N153: 0 | P153: 0 | S153: 0 | T153: 0 | X153: 0 | Y153: 0 | Z153: 0 | AC153: 0 | AD153: 0 | AE153: 0 | AF153: 0 | AG153: 0 | AH153: 0 | AI153: 0 | AJ153: 0 | AK153: 0 | AL153: 0 | CG153: 0
A154: 153 | G154: (ד) | H154: =H149 -> דרוג נמוך מ- BBB- או לא מדורג | J154: 95305.04 | K154: 2.819460128 | L154: 892.8583419 | M154: 29306.97986 | N154: 1011.502342 | O154: 29813.45 | P154: 2087.765306 | Q154: 8492.67 | R154: 1861.68 | S154: 0 | T154: 0 | U154: 1476.89 | W154: 331.08 | X154: 0 | Y154: 123.6546939 | Z154: 0 | AA154: 129.27 | AC154: 3283.05106 | AD154: 1092.405453 | AE154: 2099.617887 | AF154: 2373.340564 | AG154: 1951.537457 | AH154: 62.30894018 | AI154: 143.0045473 | AJ154: 352.012113 | AK154: 1302.789436 | AL154: 854.1225433 | CG154: 6260.23
A155: 154 | AC155: 0 | AD155: 0 | AE155: 0 | AF155: 0 | AG155: 0 | AH155: 0 | AI155: 0 | AJ155: 0 | AK155: 0 | AL155: 0 | CG155: 0
A156: 155 | D156: 4) | E156: מניות (למעט חברות מוחזקות) | J156: 16351094.64 | K156: 531.1564015 | L156: 168205.0472 | M156: 5521124.347 | N156: 190556.3191 | O156: 5271548.26 | P156: 73972.46033 | Q156: 577065.95 | R156: 95194.51 | S156: 1169428.186 | T156: 0 | U156: 33007.23 | V156: 0 | W156: 2005.35 | X156: 0 | Y156: 4381.259671 | Z156: 47550.43447 | AA156: 961.01 | AB156: 0 | AC156: 633605.3604 | AD156: 210549.437 | AE156: 181823.5108 | AF156: 425396.4643 | AG156: 85655.40137 | AH156: 12025.17956 | AI156: 27562.59304 | AJ156: 30483.67925 | AK156: 233511.3757 | AL156: 37488.49863 | AM156: 166728.54 | AN156: 0 | AO156: 0 | AP156: 0 | AQ156: 0 | AR156: 0 | AS156: 0 | AT156: 0 | AU156: 0 | AV156: 0 | AW156: 0 | AX156: 0 | AY156: 0 | AZ156: 0 | BA156: 0 | BB156: 0 | BC156: 0 | BD156: 0 | BE156: 0 | BF156: 0 | BG156: 0 | BH156: 0 | BI156: 0 | BJ156: 0 | BK156: 0 | BL156: 0 | BM156: 0 | BN156: 0 | BO156: 0 | BP156: 0 | BQ156: 0 | BR156: 0 | BS156: 0 | BT156: 0 | BU156: 0 | BV156: 0 | BW156: 0 | BX156: 0 | BY156: 0 | BZ156: 0 | CA156: 0 | CB156: 0 | CC156: 0 | CD156: 0 | CE156: 0 | CF156: 0 | CG156: 1150733.08
A157: 156 | E157: א) | F157: בישראל | J157: 10597267.33 | K157: 359.6100195 | L157: 113880.2435 | M157: 3737979.301 | N157: 129012.7756 | O157: 3299996.11 | P157: 921.4538947 | Q157: 241241.88 | R157: 27932.24 | S157: 875439.0471 | T157: 0 | U157: 2140.23 | V157: 0 | W157: 1213 | X157: 0 | Y157: 54.57610534 | Z157: 35596.46292 | AA157: 0 | AB157: 0 | AC157: 427780.1615 | AD157: 139814.7492 | AE157: 115398.0352 | AF157: 295075.7131 | AG157: 51047.63215 | AH157: 8118.828495 | AI157: 18302.86079 | AJ157: 19347.09476 | AK157: 161974.8669 | AL157: 22341.83785 | AM157: 119258.13 | AN157: 0 | AO157: 0 | AP157: 0 | AQ157: 0 | AR157: 0 | AS157: 0 | AT157: 0 | AU157: 0 | AV157: 0 | AW157: 0 | AX157: 0 | AY157: 0 | AZ157: 0 | BA157: 0 | BB157: 0 | BC157: 0 | BD157: 0 | BE157: 0 | BF157: 0 | BG157: 0 | BH157: 0 | BI157: 0 | BJ157: 0 | BK157: 0 | BL157: 0 | BM157: 0 | BN157: 0 | BO157: 0 | BP157: 0 | BQ157: 0 | BR157: 0 | BS157: 0 | BT157: 0 | BU157: 0 | BV157: 0 | BW157: 0 | BX157: 0 | BY157: 0 | BZ157: 0 | CA157: 0 | CB157: 0 | CC157: 0 | CD157: 0 | CE157: 0 | CF157: 0 | CG157: 753040.49
A158: 157 | F158: (1) | G158: סחיר | J158: 9950201.76 | K158: 329.5736249 | L158: 104368.4063 | M158: 3425764.915 | N158: 118236.9951 | O158: 3161719.84 | P158: 2.265800587 | Q158: 212509.35 | R158: 20996.82 | S158: 863995.5348 | T158: 0 | U158: 0 | V158: 0 | W158: 1213 | X158: 0 | Y158: 0.1341994127 | Z158: 35131.15518 | AA158: 0 | AB158: 0 | AC158: 406986.9258 | AD158: 130863.6316 | AE158: 103547.3634 | AF158: 287631.2021 | AG158: 46817.81248 | AH158: 7724.194218 | AI158: 17131.08842 | AJ158: 17360.26656 | AK158: 157888.3779 | AL158: 20490.58752 | AM158: 98821.69 | AN158: 0 | AO158: 0 | AP158: 0 | AQ158: 0 | AR158: 0 | AS158: 0 | AT158: 0 | AU158: 0 | AV158: 0 | AW158: 0 | AX158: 0 | AY158: 0 | AZ158: 0 | BA158: 0 | BB158: 0 | BC158: 0 | BD158: 0 | BE158: 0 | BF158: 0 | BG158: 0 | BH158: 0 | BI158: 0 | BJ158: 0 | BK158: 0 | BL158: 0 | BM158: 0 | BN158: 0 | BO158: 0 | BP158: 0 | BQ158: 0 | BR158: 0 | BS158: 0 | BT158: 0 | BU158: 0 | BV158: 0 | BW158: 0 | BX158: 0 | BY158: 0 | BZ158: 0 | CA158: 0 | CB158: 0 | CC158: 0 | CD158: 0 | CE158: 0 | CF158: 0 | CG158: 710670.63
A159: 158 | G159: (א) | H159: ='[1]טופס 106 חודשי'!H158 -> ת"א 35 | J159: 6215062.15 | K159: 204.1959576 | L159: 64664.17536 | M159: 2122522.236 | N159: 73256.82219 | O159: 1989084.56 | P159: 0 | Q159: 124317.48 | R159: 9648.35 | S159: 547224.9105 | T159: 0 | U159: 0 | V159: 0 | W159: 555.88 | X159: 0 | Y159: 0 | Z159: 22250.8595 | AA159: 0 | AB159: 0 | AC159: 257771.4523 | AD159: 82884.50076 | AE159: 65583.30918 | AF159: 182175.6533 | AG159: 29652.79526 | AH159: 4892.237651 | AI159: 10850.23924 | AJ159: 10995.39082 | AK159: 100001.0367 | AL159: 12978.03474 | AM159: 62590.26 | AN159: 0 | AO159: 0 | AP159: 0 | AQ159: 0 | AR159: 0 | AS159: 0 | AT159: 0 | AU159: 0 | AV159: 0 | AW159: 0 | AX159: 0 | AY159: 0 | AZ159: 0 | BA159: 0 | BB159: 0 | BC159: 0 | BD159: 0 | BE159: 0 | BF159: 0 | BG159: 0 | BH159: 0 | BI159: 0 | BJ159: 0 | BK159: 0 | BL159: 0 | BM159: 0 | BN159: 0 | BO159: 0 | BP159: 0 | BQ159: 0 | BR159: 0 | BS159: 0 | BT159: 0 | BU159: 0 | BV159: 0 | BW159: 0 | BX159: 0 | BY159: 0 | BZ159: 0 | CA159: 0 | CB159: 0 | CC159: 0 | CD159: 0 | CE159: 0 | CF159: 0 | CG159: 440957.77
A160: 159 | H160: a | I160: מניות | J160: 6215062.15 | K160: 204.1959576 | L160: 64664.17536 | M160: 2122522.236 | N160: 73256.82219 | O160: 1989084.56 | P160: 0 | Q160: 124317.48 | R160: 9648.35 | S160: 547224.9105 | T160: 0 | W160: 555.88 | X160: 0 | Y160: 0 | Z160: 22250.8595 | AC160: 257771.4523 | AD160: 82884.50076 | AE160: 65583.30918 | AF160: 182175.6533 | AG160: 29652.79526 | AH160: 4892.237651 | AI160: 10850.23924 | AJ160: 10995.39082 | AK160: 100001.0367 | AL160: 12978.03474 | AM160: 62590.26 | CG160: 440957.77
A161: 160 | H161: b | I161: אופציה 001 Call ח (Long) | J161: 0 | K161: 0 | L161: 0 | M161: 0 | N161: 0 | P161: 0 | S161: 0 | T161: 0 | X161: 0 | Y161: 0 | Z161: 0 | AC161: 0 | AD161: 0 | AE161: 0 | AF161: 0 | AG161: 0 | AH161: 0 | AI161: 0 | AJ161: 0 | AK161: 0 | AL161: 0 | CG161: 0
A162: 161 | H162: c | I162: אופציה 001 Call ח (Short) | J162: 0 | K162: 0 | L162: 0 | M162: 0 | N162: 0 | P162: 0 | S162: 0 | T162: 0 | X162: 0 | Y162: 0 | Z162: 0 | AC162: 0 | AD162: 0 | AE162: 0 | AF162: 0 | AG162: 0 | AH162: 0 | AI162: 0 | AJ162: 0 | AK162: 0 | AL162: 0 | CG162: 0
A163: 162 | G163: (ב) | H163: ='[1]טופס 106 חודשי'!H162 -> ת"א 90 | J163: 2737987.33 | K163: 91.33310191 | L163: 28923.09812 | M163: 949365.2175 | N163: 32766.43125 | O163: 861790.63 | P163: 0 | Q163: 68764.12 | R163: 9840.67 | S163: 231252.9322 | T163: 0 | W163: 573.12 | X163: 0 | Y163: 0 | Z163: 9403.037772 | AC163: 108932.1692 | AD163: 35026.33468 | AE163: 27715.00236 | AF163: 76985.99836 | AG163: 12531.02869 | AH163: 2067.42079 | AI163: 4585.225316 | AJ163: 4646.567645 | AK163: 42259.65164 | AL163: 5484.411308 | AM163: 26450.14 | CG163: 198532.79
A164: 163 | G164: (ג) | H164: מניות היתר | J164: 735731.81 | K164: 25.45564539 | L164: 8061.218922 | M164: 264599.6229 | N164: 9132.402569 | O164: 227179.49 | P164: 0 | Q164: 14198.69 | R164: 1101.97 | S164: 62500.24087 | T164: 0 | W164: 61.39 | X164: 0 | Y164: 0 | Z164: 2541.33913 | AC164: 29440.88227 | AD164: 9466.491146 | AE164: 7490.472432 | AF164: 20806.84965 | AG164: 3386.731237 | AH164: 558.7577344 | AI164: 1239.238854 | AJ164: 1255.817568 | AK164: 11421.43035 | AL164: 1482.258763 | AM164: 7148.61 | CG164: 52632.45
A165: 164 | G165: (ד) | H165: מניות זרות הנסחרות בארץ | J165: 261420.47 | K165: 8.588919978 | L165: 2719.913921 | M165: 89277.83808 | N165: 3081.339078 | O165: 83665.16 | P165: 2.265800587 | Q165: 5229.06 | R165: 405.83 | S165: 23017.45122 | T165: 0 | W165: 22.61 | X165: 0 | Y165: 0.1341994127 | Z165: 935.9187843 | AC165: 10842.42196 | AD165: 3486.304995 | AE165: 2758.579471 | AF165: 7662.700779 | AG165: 1247.257285 | AH165: 205.7780427 | AI165: 456.3850048 | AJ165: 462.4905295 | AK165: 4206.259221 | AL165: 545.8827147 | AM165: 2632.68 | CG165: 18547.62
A166: 165 | F166: (2) | G166: לא סחיר | J166: 647065.57 | K166: 30.03639464 | L166: 9511.837124 | M166: 312214.386 | N166: 10775.78052 | O166: 138276.27 | P166: 919.1880941 | Q166: 28732.53 | R166: 6935.42 | S166: 11443.51227 | T166: 0 | U166: 2140.23 | W166: 0 | X166: 0 | Y166: 54.44190593 | Z166: 465.3077348 | AC166: 20793.23572 | AD166: 8951.117631 | AE166: 11850.6718 | AF166: 7444.51095 | AG166: 4229.819679 | AH166: 394.6342769 | AI166: 1171.772369 | AJ166: 1986.828197 | AK166: 4086.48905 | AL166: 1851.250321 | AM166: 20436.44 | CG166: 42369.86
A167: 166 | E167: ב) | F167: בחו"ל | J167: 5753827.31 | K167: 171.546382 | L167: 54324.80376 | M167: 1783145.046 | N167: 61543.54351 | O167: 1971552.15 | P167: 73051.00643 | Q167: 335824.07 | R167: 67262.27 | S167: 293989.1384 | T167: 0 | U167: 30867 | V167: 0 | W167: 792.35 | X167: 0 | Y167: 4326.683566 | Z167: 11953.97155 | AA167: 961.01 | AB167: 0 | AC167: 205825.1989 | AD167: 70734.68775 | AE167: 66425.47551 | AF167: 130320.7512 | AG167: 34607.76922 | AH167: 3906.351066 | AI167: 9259.732252 | AJ167: 11136.58449 | AK167: 71536.50878 | AL167: 15146.66078 | AM167: 47470.41 | AN167: 0 | AO167: 0 | AP167: 0 | AQ167: 0 | AR167: 0 | AS167: 0 | AT167: 0 | AU167: 0 | AV167: 0 | AW167: 0 | AX167: 0 | AY167: 0 | AZ167: 0 | BA167: 0 | BB167: 0 | BC167: 0 | BD167: 0 | BE167: 0 | BF167: 0 | BG167: 0 | BH167: 0 | BI167: 0 | BJ167: 0 | BK167: 0 | BL167: 0 | BM167: 0 | BN167: 0 | BO167: 0 | BP167: 0 | BQ167: 0 | BR167: 0 | BS167: 0 | BT167: 0 | BU167: 0 | BV167: 0 | BW167: 0 | BX167: 0 | BY167: 0 | BZ167: 0 | CA167: 0 | CB167: 0 | CC167: 0 | CD167: 0 | CE167: 0 | CF167: 0 | CG167: 397692.59
A168: 167 | F168: (1) | G168: סחיר | J168: 3406688.64 | K168: 108.3287925 | L168: 34305.24344 | M168: 1126027.536 | N168: 38863.76197 | O168: 1111695.41 | P168: 0 | Q168: 90740.77 | R168: 5269.93 | S168: 291547.2007 | T168: 0 | U168: 11349.15 | V168: 0 | W168: 367.27 | X168: 0 | Y168: 0 | Z168: 11854.67927 | AA168: 3.5 | AB168: 0 | AC168: 143041.9113 | AD168: 46275.54388 | AE168: 38098.7858 | AF168: 98168.37262 | AG168: 17490.88556 | AH168: 2714.788693 | AI168: 6057.836117 | AJ168: 6387.464202 | AK168: 53887.21738 | AL168: 7655.174441 | AM168: 30739.98 | AN168: 0 | AO168: 0 | AP168: 0 | AQ168: 0 | AR168: 0 | AS168: 0 | AT168: 0 | AU168: 0 | AV168: 0 | AW168: 0 | AX168: 0 | AY168: 0 | AZ168: 0 | BA168: 0 | BB168: 0 | BC168: 0 | BD168: 0 | BE168: 0 | BF168: 0 | BG168: 0 | BH168: 0 | BI168: 0 | BJ168: 0 | BK168: 0 | BL168: 0 | BM168: 0 | BN168: 0 | BO168: 0 | BP168: 0 | BQ168: 0 | BR168: 0 | BS168: 0 | BT168: 0 | BU168: 0 | BV168: 0 | BW168: 0 | BX168: 0 | BY168: 0 | BZ168: 0 | CA168: 0 | CB168: 0 | CC168: 0 | CD168: 0 | CE168: 0 | CF168: 0 | CG168: 234037.9
A169: 168 | G169: (א) | H169: חברות ישראליות | J169: 1226333.28 | K169: 40.29131761 | L169: 12759.33597 | M169: 418809.5521 | N169: 14454.81059 | O169: 392480.04 | P169: 0 | Q169: 24529.94 | R169: 1903.78 | S169: 107976.7387 | T169: 0 | W169: 106.05 | X169: 0 | Y169: 0 | Z169: 4390.47126 | AC169: 50862.66874 | AD169: 16354.51423 | AE169: 12940.70238 | AF169: 35946.33535 | AG169: 5850.995398 | AH169: 965.3212595 | AI169: 2140.935766 | AJ169: 2169.577624 | AK169: 19731.89465 | AL169: 2560.784602 | AM169: 12350.11 | CG169: 87008.43
A170: 169 | G170: (ב) | H170: חברות זרות החזקה מתחת ל-10% | J170: 2168078.23 | K170: 67.91688748 | L170: 21507.7202 | M170: 705964.5332 | N170: 24365.68974 | O170: 712720.05 | P170: 0 | Q170: 64738.84 | R170: 2956.38 | S170: 183482.3738 | T170: 0 | U170: 11272.84 | W170: 261.13 | X170: 0 | Y170: 0 | Z170: 7460.626226 | AA170: 3.5 | AC170: 91580.65318 | AD170: 29725.19585 | AE170: 24939.17464 | AF170: 62124.76345 | AG170: 11540.68078 | AH170: 1738.106821 | AI170: 3891.264152 | AJ170: 4181.185356 | AK170: 34101.92655 | AL170: 5050.969218 | AM170: 18379.79 | CG170: 146022.92
A171: 170 | G171: (ג) | H171: חברות זרות החזקה של 10% ומעלה | J171: 12277.13 | K171: 0.1205874405 | L171: 38.18727602 | M171: 1253.450493 | N171: 43.26164331 | O171: 6495.32 | P171: 0 | Q171: 1471.99 | R171: 409.77 | S171: 88.08822111 | T171: 0 | U171: 76.31 | W171: 0.09 | X171: 0 | Y171: 0 | Z171: 3.581778888 | AC171: 598.5893877 | AD171: 195.8338006 | AE171: 218.9087783 | AF171: 97.27382402 | AG171: 99.20937941 | AH171: 11.36061233 | AI171: 25.6361994 | AJ171: 36.70122172 | AK171: 53.39617598 | AL171: 43.42062059 | AM171: 10.08 | CG171: 1006.55
A172: 171 | F172: (2) | G172: לא סחיר | J172: 2347138.67 | K172: 63.21758945 | L172: 20019.56032 | M172: 657117.5106 | N172: 22679.78154 | O172: 859856.74 | P172: 73051.00643 | Q172: 245083.3 | R172: 61992.34 | S172: 2441.937713 | T172: 0 | U172: 19517.85 | V172: 0 | W172: 425.08 | X172: 0 | Y172: 4326.683566 | Z172: 99.29228715 | AA172: 957.51 | AB172: 0 | AC172: 62783.28763 | AD172: 24459.14386 | AE172: 28326.68971 | AF172: 32152.3786 | AG172: 17116.88366 | AH172: 1191.562374 | AI172: 3201.896135 | AJ172: 4749.120286 | AK172: 17649.2914 | AL172: 7491.486342 | AM172: 16730.43 | AN172: 0 | AO172: 0 | AP172: 0 | AQ172: 0 | AR172: 0 | AS172: 0 | AT172: 0 | AU172: 0 | AV172: 0 | AW172: 0 | AX172: 0 | AY172: 0 | AZ172: 0 | BA172: 0 | BB172: 0 | BC172: 0 | BD172: 0 | BE172: 0 | BF172: 0 | BG172: 0 | BH172: 0 | BI172: 0 | BJ172: 0 | BK172: 0 | BL172: 0 | BM172: 0 | BN172: 0 | BO172: 0 | BP172: 0 | BQ172: 0 | BR172: 0 | BS172: 0 | BT172: 0 | BU172: 0 | BV172: 0 | BW172: 0 | BX172: 0 | BY172: 0 | BZ172: 0 | CA172: 0 | CB172: 0 | CC172: 0 | CD172: 0 | CE172: 0 | CF172: 0 | CG172: 163654.69
A173: 172 | G173: (א) | H173: חברות ישראליות | J173: 0 | K173: 0 | L173: 0 | M173: 0 | N173: 0 | P173: 0 | S173: 0 | T173: 0 | X173: 0 | Y173: 0 | Z173: 0 | AC173: 0 | AD173: 0 | AE173: 0 | AF173: 0 | AG173: 0 | AH173: 0 | AI173: 0 | AJ173: 0 | AK173: 0 | AL173: 0 | CG173: 0
A174: 173 | G174: (ב) | H174: חברות זרות | J174: 2347138.67 | K174: 63.21758945 | L174: 20019.56032 | M174: 657117.5106 | N174: 22679.78154 | O174: 859856.74 | P174: 73051.00643 | Q174: 245083.3 | R174: 61992.34 | S174: 2441.937713 | T174: 0 | U174: 19517.85 | W174: 425.08 | X174: 0 | Y174: 4326.683566 | Z174: 99.29228715 | AA174: 957.51 | AC174: 62783.28763 | AD174: 24459.14386 | AE174: 28326.68971 | AF174: 32152.3786 | AG174: 17116.88366 | AH174: 1191.562374 | AI174: 3201.896135 | AJ174: 4749.120286 | AK174: 17649.2914 | AL174: 7491.486342 | AM174: 16730.43 | CG174: 163654.69
A175: 174 | J175: 0 | AC175: 0 | AD175: 0 | AE175: 0 | AF175: 0 | AG175: 0 | AH175: 0 | AI175: 0 | AJ175: 0 | AK175: 0 | AL175: 0 | CG175: 0
A176: 175 | D176: 5) | E176: השקעות בקרנות סל | J176: 7705026.31 | K176: 213.5312629 | L176: 67620.4524 | M176: 2219558.404 | N176: 76605.93257 | O176: 2242148.55 | P176: 20200.91507 | Q176: 274412.85 | R176: 36611.23 | S176: 546018.1874 | T176: 398.2772193 | U176: 84668.71 | V176: 0 | W176: 7832.18 | X176: 28.87278072 | Y176: 1196.464929 | Z176: 22201.7926 | AA176: 3640.2 | AB176: 221198.36 | AC176: 286597.6016 | AD176: 94561.37518 | AE176: 92127.76063 | AF176: 207955.3149 | AG176: 47365.6099 | AH176: 5439.328384 | AI176: 12378.83482 | AJ176: 15445.70937 | AK176: 114152.1751 | AL176: 20730.3401 | AM176: 53258.43 | AN176: 19472.87 | AO176: 261714.96 | AP176: 52380.77 | AQ176: 59559.23 | AR176: 85274.05 | AS176: 0 | AT176: 0 | AU176: 0 | AV176: 0 | AW176: 0 | AX176: 0 | AY176: 0 | AZ176: 0 | BA176: 0 | BB176: 0 | BC176: 0 | BD176: 0 | BE176: 0 | BF176: 0 | BG176: 0 | BH176: 0 | BI176: 0 | BJ176: 0 | BK176: 0 | BL176: 0 | BM176: 0 | BN176: 0 | BO176: 0 | BP176: 0 | BQ176: 0 | BR176: 0 | BS176: 0 | BT176: 0 | BU176: 0 | BV176: 0 | BW176: 0 | BX176: 0 | BY176: 0 | BZ176: 0 | CA176: 0 | CB176: 0 | CC176: 0 | CD176: 0 | CE176: 0 | CF176: 0 | CG176: 452057.04
A177: 176 | E177: א) | F177: בישראל | J177: 1818411.95 | K177: 35.96979676 | L177: 11390.80946 | M177: 373889.348 | N177: 12904.43276 | O177: 344877.59 | P177: 20200.91507 | Q177: 89736.23 | R177: 29136.59 | S177: 65241.44983 | T177: 398.2772193 | U177: 1908.01 | V177: 0 | W177: 7093.83 | X177: 28.87278072 | Y177: 1196.464929 | Z177: 2652.800166 | AA177: 0 | AB177: 118909.62 | AC177: 43346.92975 | AD177: 15432.02535 | AE177: 24857.55809 | AF177: 44503.75259 | AG177: 16082.22088 | AH177: 822.6802459 | AI177: 2020.174647 | AJ177: 4167.501907 | AK177: 24429.28741 | AL177: 7038.649119 | AM177: 6856.46 | AN177: 19472.87 | AO177: 261714.96 | AP177: 52380.77 | AQ177: 59559.23 | AR177: 85274.05 | AS177: 0 | AT177: 0 | AU177: 0 | AV177: 0 | AW177: 0 | AX177: 0 | AY177: 0 | AZ177: 0 | BA177: 0 | BB177: 0 | BC177: 0 | BD177: 0 | BE177: 0 | BF177: 0 | BG177: 0 | BH177: 0 | BI177: 0 | BJ177: 0 | BK177: 0 | BL177: 0 | BM177: 0 | BN177: 0 | BO177: 0 | BP177: 0 | BQ177: 0 | BR177: 0 | BS177: 0 | BT177: 0 | BU177: 0 | BV177: 0 | BW177: 0 | BX177: 0 | BY177: 0 | BZ177: 0 | CA177: 0 | CB177: 0 | CC177: 0 | CD177: 0 | CE177: 0 | CF177: 0 | CG177: 70851.62
A178: 177 | F178: (1) | G178: שעוקבות אחר מדדי מניות בארץ | J178: 567274.41 | K178: 14.67261876 | L178: 4646.481761 | M178: 152515.0642 | N178: 5263.911375 | O178: 142926.82 | P178: 0 | Q178: 8932.91 | R178: 693.29 | S178: 39321.16165 | T178: 0 | W178: 38.62 | X178: 0 | Y178: 0 | Z178: 1598.848346 | AB178: 35414.8 | AC178: 18522.31546 | AD178: 5955.710242 | AE178: 4712.529371 | AF178: 13090.33741 | AG178: 2130.716705 | AH178: 351.5345406 | AI178: 779.6497584 | AJ178: 790.0806292 | AK178: 7185.632589 | AL178: 932.5432954 | AM178: 4497.46 | AR178: 85274.05 | CG178: 31685.27
A179: 178 | F179: (2) | G179: שעוקבות אחר מדדי מניות בחו"ל | J179: 554005.84 | K179: 9.043971321 | L179: 2864.018241 | M179: 94007.88565 | N179: 3244.592139 | O179: 96729.27 | P179: 0 | Q179: 9448.89 | R179: 380.21 | S179: 24490.76443 | T179: 0 | U179: 1908.01 | W179: 37.76 | X179: 0 | Y179: 0 | Z179: 995.8255698 | AC179: 12400.41289 | AD179: 4034.316003 | AE179: 3432.04876 | AF179: 8328.090664 | AG179: 1596.448147 | AH179: 235.3471118 | AI179: 528.1239969 | AJ179: 575.40124 | AK179: 4571.509336 | AL179: 698.7118527 | AM179: 2359 | AO179: 261714.96 | CG179: 19415.2
A180: 179 | F180: (3) | G180: שעוקבות אחר מדדי אג"ח בארץ | J180: 697131.7 | K180: 12.25320667 | L180: 3880.309454 | M180: 127366.3981 | N180: 4395.929248 | O180: 105221.5 | P180: 20200.91507 | Q180: 71354.43 | R180: 28063.09 | S180: 1429.52375 | T180: 398.2772193 | W180: 7017.45 | X180: 28.87278072 | Y180: 1196.464929 | Z180: 58.12625027 | AB180: 83494.82 | AC180: 12424.20141 | AD180: 5441.999108 | AE180: 16712.97996 | AF180: 23085.32451 | AG180: 12355.05603 | AH180: 235.7985935 | AI180: 712.4008921 | AJ180: 2802.020038 | AK180: 12672.14549 | AL180: 5407.393971 | AN180: 19472.87 | AP180: 52380.77 | AQ180: 59559.23 | CG180: 19751.15
A181: 180 | F181: (4) | G181: שעוקבות אחר מדדי אג"ח בחו"ל | J181: 0 | K181: 0 | L181: 0 | M181: 0 | N181: 0 | P181: 0 | S181: 0 | T181: 0 | X181: 0 | Y181: 0 | Z181: 0 | AC181: 0 | AD181: 0 | AE181: 0 | AF181: 0 | AG181: 0 | AH181: 0 | AI181: 0 | AJ181: 0 | AK181: 0 | AL181: 0 | CG181: 0
A182: 181 | F182: (5) | G182: בחסר | J182: 0 | K182: 0 | L182: 0 | M182: 0 | N182: 0 | P182: 0 | S182: 0 | T182: 0 | X182: 0 | Y182: 0 | Z182: 0 | AC182: 0 | AD182: 0 | AE182: 0 | AF182: 0 | AG182: 0 | AH182: 0 | AI182: 0 | AJ182: 0 | AK182: 0 | AL182: 0 | CG182: 0
A183: 182 | F183: (6) | G183: אחר | J183: 0 | K183: 0 | L183: 0 | M183: 0 | N183: 0 | P183: 0 | S183: 0 | T183: 0 | X183: 0 | Y183: 0 | Z183: 0 | AC183: 0 | AD183: 0 | AE183: 0 | AF183: 0 | AG183: 0 | AH183: 0 | AI183: 0 | AJ183: 0 | AK183: 0 | AL183: 0 | CG183: 0
A184: 183 | E184: ב) | F184: בחו"ל | J184: 5886614.36 | K184: 177.5614662 | L184: 56229.64294 | M184: 1845669.056 | N184: 63701.49981 | O184: 1897270.96 | P184: 0 | Q184: 184676.62 | R184: 7474.64 | S184: 480776.7376 | T184: 0 | U184: 82760.7 | V184: 0 | W184: 738.35 | X184: 0 | Y184: 0 | Z184: 19548.99244 | AA184: 3640.2 | AB184: 102288.74 | AC184: 243250.6719 | AD184: 79129.34983 | AE184: 67270.20253 | AF184: 163451.5623 | AG184: 31283.38902 | AH184: 4616.648138 | AI184: 10358.66017 | AJ184: 11278.20747 | AK184: 89722.88767 | AL184: 13691.69098 | AM184: 46401.97 | AN184: 0 | AO184: 0 | AP184: 0 | AQ184: 0 | AR184: 0 | AS184: 0 | AT184: 0 | AU184: 0 | AV184: 0 | AW184: 0 | AX184: 0 | AY184: 0 | AZ184: 0 | BA184: 0 | BB184: 0 | BC184: 0 | BD184: 0 | BE184: 0 | BF184: 0 | BG184: 0 | BH184: 0 | BI184: 0 | BJ184: 0 | BK184: 0 | BL184: 0 | BM184: 0 | BN184: 0 | BO184: 0 | BP184: 0 | BQ184: 0 | BR184: 0 | BS184: 0 | BT184: 0 | BU184: 0 | BV184: 0 | BW184: 0 | BX184: 0 | BY184: 0 | BZ184: 0 | CA184: 0 | CB184: 0 | CC184: 0 | CD184: 0 | CE184: 0 | CF184: 0 | CG184: 381205.42
A185: 184 | F185: (1) | G185: שעוקבות אחר מדדי מניות | J185: 5842278.98 | K185: 177.5614662 | L185: 56229.64294 | M185: 1845669.056 | N185: 63701.49981 | O185: 1897270.96 | P185: 0 | Q185: 184676.62 | R185: 7474.64 | S185: 480776.7376 | T185: 0 | U185: 64851.63 | W185: 738.35 | X185: 0 | Y185: 0 | Z185: 19548.99244 | AB185: 79502.63 | AC185: 243250.6719 | AD185: 79129.34983 | AE185: 67270.20253 | AF185: 163451.5623 | AG185: 31283.38902 | AH185: 4616.648138 | AI185: 10358.66017 | AJ185: 11278.20747 | AK185: 89722.88767 | AL185: 13691.69098 | AM185: 46401.97 | CG185: 381205.42
A186: 185 | F186: (2) | G186: שעוקבות אחר מדדי אג"ח | J186: 44335.38 | K186: 0 | L186: 0 | M186: 0 | N186: 0 | P186: 0 | S186: 0 | T186: 0 | U186: 17909.07 | X186: 0 | Y186: 0 | Z186: 0 | AA186: 3640.2 | AB186: 22786.11 | AC186: 0 | AD186: 0 | AE186: 0 | AF186: 0 | AG186: 0 | AH186: 0 | AI186: 0 | AJ186: 0 | AK186: 0 | AL186: 0 | CG186: 0
A187: 186 | F187: (3) | G187: בחסר | J187: 0 | K187: 0 | L187: 0 | M187: 0 | N187: 0 | P187: 0 | S187: 0 | T187: 0 | X187: 0 | Y187: 0 | Z187: 0 | AC187: 0 | AD187: 0 | AE187: 0 | AF187: 0 | AG187: 0 | AH187: 0 | AI187: 0 | AJ187: 0 | AK187: 0 | AL187: 0 | CG187: 0
A188: 187 | F188: (4) | G188: אחר | J188: 0 | K188: 0 | L188: 0 | M188: 0 | N188: 0 | P188: 0 | S188: 0 | T188: 0 | X188: 0 | Y188: 0 | Z188: 0 | AC188: 0 | AD188: 0 | AE188: 0 | AF188: 0 | AG188: 0 | AH188: 0 | AI188: 0 | AJ188: 0 | AK188: 0 | AL188: 0 | CG188: 0
A189: 188 | AC189: 0 | AD189: 0 | AE189: 0 | AF189: 0 | AG189: 0 | AH189: 0 | AI189: 0 | AJ189: 0 | AK189: 0 | AL189: 0 | CG189: 0
A190: 189 | D190: 6) | E190: תעודות השתתפות בקרנות נאמנות | J190: 2402987.52 | K190: 68.20071264 | L190: 21597.60111 | M190: 708914.764 | N190: 24467.51413 | O190: 703999.14 | P190: 20242.20929 | Q190: 218926.28 | R190: 27710.83 | S190: 103563.7274 | T190: 0 | U190: 34312.92 | V190: 0 | W190: 7916.73 | X190: 0 | Y190: 1198.910714 | Z190: 4211.032617 | AA190: 3175.08 | AB190: 0 | AC190: 90550.74969 | AD190: 35215.67812 | AE190: 42111.16849 | AF190: 75402.27566 | AG190: 33789.2275 | AH190: 1718.56031 | AI190: 4610.011875 | AJ190: 7060.161513 | AK190: 41390.30434 | AL190: 14788.4125 | AM190: 9855.63 | AN190: 289.5 | AO190: 0 | AP190: 793.96 | AQ190: 1016.8 | AR190: 837.83 | AS190: 0 | AT190: 0 | AU190: 0 | AV190: 0 | AW190: 0 | AX190: 0 | AY190: 0 | AZ190: 0 | BA190: 0 | BB190: 0 | BC190: 0 | BD190: 0 | BE190: 0 | BF190: 0 | BG190: 0 | BH190: 0 | BI190: 0 | BJ190: 0 | BK190: 0 | BL190: 0 | BM190: 0 | BN190: 0 | BO190: 0 | BP190: 0 | BQ190: 0 | BR190: 0 | BS190: 0 | BT190: 0 | BU190: 0 | BV190: 0 | BW190: 0 | BX190: 0 | BY190: 0 | BZ190: 0 | CA190: 0 | CB190: 0 | CC190: 0 | CD190: 0 | CE190: 0 | CF190: 0 | CG190: 163252.31
A191: 190 | E191: א) | F191: בישראל | J191: 18204.43 | K191: 0.4843550061 | L191: 153.3841189 | M191: 5034.645556 | N191: 173.7659696 | O191: 4718.13 | P191: 0 | Q191: 294.88 | R191: 547.07 | S191: 1298.020826 | T191: 0 | W191: 1.28 | X191: 0 | Y191: 0 | Z191: 52.77917445 | AC191: 611.4355801 | AD191: 196.603094 | AE191: 155.5681686 | AF191: 432.1250988 | AG191: 70.33620169 | AH191: 11.60441988 | AI191: 25.73690601 | AJ191: 26.0818314 | AK191: 237.2049012 | AL191: 30.78379831 | AM191: 148.46 | AN191: 289.5 | AP191: 793.96 | AQ191: 1016.8 | AR191: 837.83 | CG191: 1045.96
A192: 191 | E192: ב) | F192: בחו"ל | J192: 2384783.09 | K192: 67.71635763 | L192: 21444.217 | M192: 703880.1185 | N192: 24293.74816 | O192: 699281.01 | P192: 20242.20929 | Q192: 218631.4 | R192: 27163.76 | S192: 102265.7066 | T192: 0 | U192: 34312.92 | V192: 0 | W192: 7915.45 | X192: 0 | Y192: 1198.910714 | Z192: 4158.253443 | AA192: 3175.08 | AB192: 0 | AC192: 89939.31411 | AD192: 35019.07503 | AE192: 41955.60032 | AF192: 74970.15056 | AG192: 33718.89129 | AH192: 1706.95589 | AI192: 4584.274969 | AJ192: 7034.079682 | AK192: 41153.09944 | AL192: 14757.62871 | AM192: 9707.17 | AN192: 0 | AO192: 0 | AP192: 0 | AQ192: 0 | AR192: 0 | AS192: 0 | AT192: 0 | AU192: 0 | AV192: 0 | AW192: 0 | AX192: 0 | AY192: 0 | AZ192: 0 | BA192: 0 | BB192: 0 | BC192: 0 | BD192: 0 | BE192: 0 | BF192: 0 | BG192: 0 | BH192: 0 | BI192: 0 | BJ192: 0 | BK192: 0 | BL192: 0 | BM192: 0 | BN192: 0 | BO192: 0 | BP192: 0 | BQ192: 0 | BR192: 0 | BS192: 0 | BT192: 0 | BU192: 0 | BV192: 0 | BW192: 0 | BX192: 0 | BY192: 0 | BZ192: 0 | CA192: 0 | CB192: 0 | CC192: 0 | CD192: 0 | CE192: 0 | CF192: 0 | CG192: 162206.35
A193: 192 | F193: (1) | G193: אג"ח קנצרני | J193: 913911.76 | K193: 23.57350055 | L193: 7465.18683 | M193: 245035.6006 | N193: 8457.169077 | O193: 232825.94 | P193: 15644.85269 | Q193: 138925.67 | R193: 19785.28 | S193: 1486.919947 | T193: 0 | U193: 20451.59 | W193: 5997.53 | X193: 0 | Y193: 926.6173093 | Z193: 60.46005253 | AA193: 2454.09 | AC193: 30074.40859 | AD193: 14234.82799 | AE193: 21511.47648 | AF193: 31456.70968 | AG193: 20983.44802 | AH193: 570.7814139 | AI193: 1863.452007 | AJ193: 3606.513517 | AK193: 17267.42032 | AL193: 9183.751983 | CG193: 63618.49
A194: 193 | F194: (2) | G194: אג"ח ממשלתי | J194: 0 | K194: 0 | L194: 0 | M194: 0 | N194: 0 | P194: 0 | S194: 0 | T194: 0 | X194: 0 | Y194: 0 | Z194: 0 | AC194: 0 | AD194: 0 | AE194: 0 | AF194: 0 | AG194: 0 | AH194: 0 | AI194: 0 | AJ194: 0 | AK194: 0 | AL194: 0 | CG194: 0
A195: 194 | F195: (3) | G195: מניות | J195: 1202768.08 | K195: 37.21567488 | L195: 11785.35048 | M195: 386839.673 | N195: 13351.40083 | O195: 398038.13 | P195: 0 | Q195: 38881.92 | R195: 1564.53 | S195: 100778.7866 | T195: 0 | U195: 7851.35 | W195: 155.32 | X195: 0 | Y195: 0 | Z195: 4097.79339 | AC195: 51027.36301 | AD195: 16601.10371 | AE195: 14122.75497 | AF195: 34269.83871 | AG195: 6569.31916 | AH195: 968.4469878 | AI195: 2173.216287 | AJ195: 2367.755032 | AK195: 18811.62129 | AL195: 2875.17084 | AM195: 9707.17 | CG195: 79892.85
A196: 195 | F196: (4) | G196: אחר | J196: 268103.25 | K196: 6.927182198 | L196: 2193.679687 | M196: 72004.84487 | N196: 2485.17826 | O196: 68416.94 | P196: 4597.356596 | Q196: 40823.81 | R196: 5813.95 | S196: 0 | T196: 0 | U196: 6009.98 | W196: 1762.6 | X196: 0 | Y196: 272.2934043 | Z196: 0 | AA196: 720.99 | AC196: 8837.542512 | AD196: 4183.143325 | AE196: 6321.368867 | AF196: 9243.602172 | AG196: 6166.124118 | AH196: 167.7274882 | AI196: 547.606675 | AJ196: 1059.811133 | AK196: 5074.057828 | AL196: 2698.705882 | CG196: 18695.01
A197: 196 | AC197: 0 | AD197: 0 | AE197: 0 | AF197: 0 | AG197: 0 | AH197: 0 | AI197: 0 | AJ197: 0 | AK197: 0 | AL197: 0 | CG197: 0
A198: 197 | D198: 7) | E198: קרנות השקעה | J198: 8999789.8 | K198: 280.4845529 | L198: 88823.02336 | M198: 2915506.788 | N198: 100625.9245 | O198: 2965475.39 | P198: 43812.57753 | Q198: 733428.36 | R198: 208703.64 | S198: 225788.474 | T198: 0 | U198: 82073.59 | V198: 0 | W198: 1143.28 | X198: 0 | Y198: 2594.942471 | Z198: 9180.845965 | AA198: 2796.65 | AB198: 0 | AC198: 304578.2769 | AD198: 114616.1729 | AE198: 170568.7854 | AF198: 148643.9258 | AG198: 63335.57248 | AH198: 5780.583149 | AI198: 15004.16708 | AJ198: 28596.76464 | AK198: 81594.58417 | AL198: 27719.85752 | AM198: 96474.67 | AN198: 0 | AO198: 0 | AP198: 0 | AQ198: 0 | AR198: 0 | AS198: 0 | AT198: 0 | AU198: 0 | AV198: 0 | AW198: 0 | AX198: 0 | AY198: 0 | AZ198: 0 | BA198: 0 | BB198: 0 | BC198: 0 | BD198: 0 | BE198: 0 | BF198: 0 | BG198: 0 | BH198: 0 | BI198: 0 | BJ198: 0 | BK198: 0 | BL198: 0 | BM198: 0 | BN198: 0 | BO198: 0 | BP198: 0 | BQ198: 0 | BR198: 0 | BS198: 0 | BT198: 0 | BU198: 0 | BV198: 0 | BW198: 0 | BX198: 0 | BY198: 0 | BZ198: 0 | CA198: 0 | CB198: 0 | CC198: 0 | CD198: 0 | CE198: 0 | CF198: 0 | CG198: 562642.47
A199: 198 | E199: א) | F199: בישראל | J199: 1728009.69 | K199: 76.00738954 | L199: 24069.7966 | M199: 790061.5483 | N199: 27268.21768 | O199: 532853.27 | P199: 3550.046919 | Q199: 104712.45 | R199: 25975.28 | S199: 31620.20243 | T199: 0 | U199: 4936.01 | V199: 0 | W199: 217.35 | X199: 0 | Y199: 210.2630807 | Z199: 1285.717569 | AA199: 0 | AB199: 0 | AC199: 22387.49826 | AD199: 8920.124834 | AE199: 10489.37967 | AF199: 11406.97796 | AG199: 3107.424455 | AH199: 424.8917438 | AI199: 1167.715166 | AJ199: 1758.600327 | AK199: 6261.592042 | AL199: 1360.015545 | AM199: 14097.84 | AN199: 0 | AO199: 0 | AP199: 0 | AQ199: 0 | AR199: 0 | AS199: 0 | AT199: 0 | AU199: 0 | AV199: 0 | AW199: 0 | AX199: 0 | AY199: 0 | AZ199: 0 | BA199: 0 | BB199: 0 | BC199: 0 | BD199: 0 | BE199: 0 | BF199: 0 | BG199: 0 | BH199: 0 | BI199: 0 | BJ199: 0 | BK199: 0 | BL199: 0 | BM199: 0 | BN199: 0 | BO199: 0 | BP199: 0 | BQ199: 0 | BR199: 0 | BS199: 0 | BT199: 0 | BU199: 0 | BV199: 0 | BW199: 0 | BX199: 0 | BY199: 0 | BZ199: 0 | CA199: 0 | CB199: 0 | CC199: 0 | CD199: 0 | CE199: 0 | CF199: 0 | CG199: 99791.47
A200: 199 | F200: (1) | G200: קרנות הון סיכון | J200: 156981.49 | K200: 7.258516293 | L200: 2298.605594 | M200: 75448.90905 | N200: 2604.046836 | O200: 40660.31 | P200: 0 | Q200: 6219.72 | R200: 1599.22 | S200: 3241.650381 | T200: 0 | U200: 766.46 | X200: 0 | Y200: 0 | Z200: 131.8096194 | AC200: 4253.640273 | AD200: 1701.968774 | AE200: 1225.841199 | AF200: 2146.054111 | AG200: 187.9851846 | AH200: 80.72972746 | AI200: 222.801226 | AJ200: 205.518801 | AK200: 1178.025889 | AL200: 82.27481539 | AM200: 2170.62 | CG200: 10548.04
A201: 200 | F201: (2) | G201: קרנות גידור | J201: 379211.58 | K201: 14.90513496 | L201: 4720.114308 | M201: 154931.9623 | N201: 5347.328295 | O201: 136489.19 | P201: 1943.603744 | Q201: 19865.76 | R201: 3826.35 | S201: 14829.50356 | T201: 0 | U201: 363.46 | W201: 217.35 | X201: 0 | Y201: 115.1162563 | Z201: 602.986439 | AC201: 5233.552543 | AD201: 1547.340803 | AE201: 2220.295622 | AF201: 2244.438382 | AG201: 1143.081525 | AH201: 99.32745681 | AI201: 202.5591969 | AJ201: 372.2443776 | AK201: 1232.031618 | AL201: 500.2884754 | AM201: 381.51 | CG201: 20767.28
A202: 201 | F202: (3) | G202: קרנות נדל"ן | J202: 59332.42 | K202: 0.3130646938 | L202: 99.14040657 | M202: 3254.162236 | N202: 112.314293 | O202: 30710.12 | P202: 531.3302377 | Q202: 8593.47 | R202: 2187.92 | S202: 0 | T202: 0 | U202: 265.88 | X202: 0 | Y202: 31.46976229 | Z202: 0 | AC202: 2727.573455 | AD202: 1006.218066 | AE202: 1226.886028 | AF202: 626.6146421 | AG202: 710.0325486 | AH202: 51.76654525 | AI202: 131.7219341 | AJ202: 205.6939721 | AK202: 343.9653579 | AL202: 310.7574514 | AM202: 106.02 | CG202: 6099.05
... 335 more rows

Sheet גיליון2

Sheet גיליון3
